Workbook

Sheet Calculation Sheet
B1: TPS25981 Design Calculation Tool
P2: Table - 1: Device Comparison Table
C3: Constants Cells | P3: Part number | Q3: Overvoltage Response | R3: Overcurrent response | S3: PG | T3: FLT | U3: Response to Thermal Shutdown (TSD)
C4: Input/SelectCells | P4: TPS259814A | Q4: Adjustable OVLO | R4: Circuit Breaker | S4: Yes | T4: Yes | U4: Auto-Retry
C5: Calculation Cells | P5: TPS259814L | Q5: Adjustable OVLO | R5: Circuit Breaker | S5: Yes | T5: Yes | U5: Latch-off
C6: Calculated, but can be over-ridden by user
C7: Error Cells, Must be Fixed
B9: Parameter | C9: Description | D9: Value | E9: Units | F9: Tolerance | G9: Recommended Value
B10: Select Device | C10: Choose from the drop down between retry and latch variant. | D10: TPS259814A
B11: VIN (max) | C11: Maximum Operating input voltage (magnitude) | D11: 15 | E11: V
B12: OVLO Set Point | C12: Desired Over Voltage Lockout Set Point | D12: 16 | E12: V | F12: 0.03
B13: UVLO Set Point | C13: Desired Undervoltage Threshold (VIN Rising) | D13: 10.8 | E13: V | F13: 0.03
B14: VUVP | C14: Internal Undervoltage Protection Threshold (VIN Rising) | D14: 2.53 | E14: V | F14: 0.03
B15: Cout | C15: Load Capacitance | D15: 4400 | E15: uF | F15: 0.1
C16: Is there downstream load present other than load cap at startup? | D16: YES
B17: VONTH (CR) (V) | C17: constant resistance load turn on threshold voltage | D17: 0 | E17: V
B18: RLOAD (STARTUP) (Ω) | C18: CR load at startup | D18: 20 | E18: Ohm
B19: VONTH (CC) (V) | C19: constant current load turn on threshold voltage | D19: 3 | E19: V
B20: ILOAD (STARTUP) (A) | C20: CC load at startup | D20: 0 | E20: A
B21: VONTH (CP) (V) | C21: constant power load turn on threshold voltage | D21: 8 | E21: V
B22: PLOAD (STARTUP) (W) | C22: CP load at startup | D22: 0 | E22: W
B23: Istartup(A) | C23: It is sum of max downstream load current and load cap charge current during startup .It should be <Imax | D23: =(Vcc_max/TSD!AD5+TSD!AD7+TSD!AD9/D21+Icharge/1000) -> 1.718 | E23: A
B24: Imax | C24: Maximum continuous load current (magnitude) | D24: 10 | E24: A
B25: Ilimit | C25: Current Limit, 10.5% higher than maximum continuous load current | D25: 11 | E25: A
B26: tITIMER | C26: Load transient blanking interval | D26: 2 | E26: ms
B27: TA, MAX | C27: Maximum Operating Ambient temperature | D27: 25 | E27: °C
B30: UVLO, OVLO set point calculations | L30: R2+R3
B31: UVLO Set Point | C31: Desired Undervoltage Threshold (VIN Rising) | D31: =D13 -> 10.8 | L31: =(OVref*D33)/(D31-OVref) -> 58.75
B32: OVLO Set Point | C32: Desired Over Voltage Lockout Set Point | D32: =D12 -> 16 | J32: =D40 -> 9.818381113 | K32: Power Fail (VIN Falling) | L32: R2
B33: R1: Pullup at EN/OVLO Pin | C33: Value > 350K recommended | D33: 470 | E33: kOhm | F33: 0.01 | J33: =D39 -> 10.71096121 | K33: Release UVLO (VIN Rising) | L33: =IF(D34>=10000,D34/100,IF(D34>=1000,D34/10,IF(D34>=100,D34,IF(D34>=10,D34*10,D34*100)))) -> 190.9375
B34: R2_cal | C34: Calculated value of Resistor at EN/OVLO pin | D34: =L31-D35 -> 19.09375 | E34: kOhm | J34: =D42 -> 14.48333333 | K34: Release OVLO (VIN Falling) | L34: =INDEX('Res EIA Tables'!E$5:E$197,2+MATCH(L33,'Res EIA Tables'!E$5:E$197)) -> 191
B35: R3_cal | C35: Calculated value of Resistor at EN/OVLO pin | D35: =(D33+L31)*OVref/D32 -> 39.65625 | E35: kOhm | J35: =D41 -> 15.8 | K35: OV Cutoff (VIN Rising) | L35: R3
B36: SELECT THE VALUE OF RESISTORS AS CLOSEST AVAILABLE VALUE OF R2 & R3 | L36: =IF(D35>=10000,D35/100,IF(D35>=1000,D35/10,IF(D35>=100,D35,IF(D35>=10,D35*10,D35*100)))) -> 396.5625 | S36: R2+R3
B37: R2 | C37: Select the closest possible value as R2_cal | D37: =G37 -> 19.1 | E37: kOhm | F37: 0.01 | G37: =L34*D34/L33 -> 19.1 | L37: =INDEX('Res EIA Tables'!E$5:E$197,2+MATCH(L36,'Res EIA Tables'!E$5:E$197)) -> 402 | S37: =(OVref*K39)/(K37-OVref) -> 0
B38: R3 | C38: Select the closest possible value as R3_cal | D38: =G38 -> 40.2 | E38: kOhm | F38: 0.01 | G38: =L37*D35/L36 -> 40.2 | Q38: =K46 -> 0 | R38: Power Fail (VIN Falling) | S38: R2
B39: UV_final_rising | C39: Undervoltage Threshold (VIN Rising) | D39: =OVref*(D33+D37+D38)/(D37+D38) -> 10.71096121 | E39: V | F39: =SQRT(F103^2+F33^2+F37^2+F38^2) -> 0.03464101615 | L39: =IF(D47>=100,D47,IF(D47>=10,D47*10,D47*100)) -> 0 | Q39: =K45 -> 0 | R39: Release UVLO (VIN Rising) | S39: =IF(K40>=10000,K40/100,IF(K40>=1000,K40/10,IF(K40>=100,K40,IF(K40>=10,K40*10,K40*100)))) -> 0
B40: UV_final_falling | C40: Undervoltage Threshold (VIN Falling) | D40: =UVref*(D33+D37+D38)/(D37+D38) -> 9.818381113 | E40: V | F40: =SQRT(F102^2+F33^2+F37^2+F38^2) -> 0.0653375849 | L40: =IF(L39>1000,INDEX('Res EIA Tables'!E$5:E$197,MATCH(L39/10,'Res EIA Tables'!E$5:E$197))*10,INDEX('Res EIA Tables'!E$5:E$197,MATCH(L39,'Res EIA Tables'!E$5:E$197))) ->  | Q40: =K48 -> 0 | R40: Release OVLO (VIN Falling) | S40: =INDEX('Res EIA Tables'!L$5:L$197,2+MATCH(S39,'Res EIA Tables'!L$5:L$197)) -> 
B41: OV_final_rising | C41: Overvoltage Threshold (VIN Rising) | D41: =OVref*(D33+D37+D38)/(D38) -> 15.8 | E41: V | F41: =SQRT(F103^2+F33^2+F37^2+F38^2) -> 0.03464101615 | Q41: =K47 -> 0 | R41: OV Cutoff (VIN Rising) | S41: R3
B42: OV_final_falling | C42: Overvoltage Threshold (VIN Falling) | D42: =UVref*(D33+D37+D38)/(D38) -> 14.48333333 | E42: V | F42: =SQRT(F102^2+F33^2+F37^2+F38^2) -> 0.0653375849 | L42: =IF(#REF!>=10000,#REF!/100,IF(#REF!>=1000,#REF!/10,IF(#REF!>=100,#REF!,IF(#REF!>=10,#REF!*10,#REF!*100)))) ->  | S42: =IF(K41>=10000,K41/100,IF(K41>=1000,K41/10,IF(K41>=100,K41,IF(K41>=10,K41*10,K41*100)))) -> 0
B43: I_R123 | C43: Current in R1, R2 and R3 Branch | D43: =Vcc_max*1000/(D33+D37+D38) -> 28.33931608 | E43: uA | L43: =INDEX('Res EIA Tables'!E$5:E$197,2+MATCH(L42,'Res EIA Tables'!E$5:E$197)) ->  | S43: =INDEX('Res EIA Tables'!L$5:L$197,2+MATCH(S42,'Res EIA Tables'!L$5:L$197)) -> 
L44: =IF(#REF!>=10000,#REF!/100,IF(#REF!>=1000,#REF!/10,IF(#REF!>=100,#REF!,IF(#REF!>=10,#REF!*10,#REF!*100)))) -> 
L45: =INDEX('Res EIA Tables'!E$5:E$197,2+MATCH(L44,'Res EIA Tables'!E$5:E$197)) ->  | S45: =IF(#REF!>=100,#REF!,IF(#REF!>=10,#REF!*10,#REF!*100)) -> 
L46: =IF(D51>=10000,D51/100,IF(D51>=1000,D51/10,IF(D51>=100,D51,IF(D51>=10,D51*10,D51*100)))) -> 599.5454545 | S46: =IF(S45>1000,INDEX('Res EIA Tables'!L$5:L$197,MATCH(S45/10,'Res EIA Tables'!L$5:L$197))*10,INDEX('Res EIA Tables'!L$5:L$197,MATCH(S45,'Res EIA Tables'!L$5:L$197))) -> 
L47: =INDEX('Res EIA Tables'!E$5:E$197,2+MATCH(L46,'Res EIA Tables'!E$5:E$197)) -> 604
S48: =IF(#REF!>=10000,#REF!/100,IF(#REF!>=1000,#REF!/10,IF(#REF!>=100,#REF!,IF(#REF!>=10,#REF!*10,#REF!*100)))) -> 
S49: =INDEX('Res EIA Tables'!L$5:L$197,2+MATCH(S48,'Res EIA Tables'!L$5:L$197)) -> 
B50: Calculations for Ilimit (resistor on ILM Pin) | K50: =Icharge*(10^-3) -> 0.968 | L50: Inrush Charging Current
B51: RILM_Cal | C51: Calculated current limit resistor | D51: =6595/(Ilimit) -> 599.5454545 | E51: Ohm | K51: =Ilimit_final -> 10.91887417 | L51: Overload Curr Limit
B52: SELECT A ILIMIT RESISTOR WITH THE CLOSEST AVAILABLE VALUE OF Rilm_Cal
B53: RILM | C53: Select the closest available value of RLM_cal | D53: =G53 -> 604 | E53: Ohm | F53: 0.01 | G53: =L47/L46*D51 -> 604
B54: Ilimit_final | C54: Final current Limit Set Point | D54: =6595/D53 -> 10.91887417 | E54: A | F54: =SQRT(0.105^2+F53^2) -> 0.1054751155
B55: Isc | C55: Scalable fast trip threshold | D55: =2*Ilimit_final -> 21.83774834 | E55: A | F55: =F54 -> 0.1054751155
B57: Calculations for SoftStart control (external cap on dVdt pin)
B58: Parameter | C58: Description | D58: Value | E58: Units | F58: Tolerance
B59: I_dVdt | C59: Internal charging current on dVdt | D59: 3.49 | E59: uA | F59: 0.104
B60: Icharge_fastest | C60: Charging current when charging at fastest possible rate | D60: =Cout*(Vcc_max/D61)/1000 -> 116.8141593 | E60: A
B61: Tchg_fastest | C61: when no external capacitor is connected (max. slew rate) | D61: =Vcc_max*0.023+0.22 -> 0.565 | E61: ms | F61: 0.15
B62: Tchg_req | C62: The charging time required | D62: 20 | E62: ms
B63: Icharge_req | C63: Charging (inrush) current desired in the system | D63: 1 | E63: A
B64: Cext_dvdt_cal1 | C64: calculated value of capacitor at dVdT pin for required Tcharge | D64: =IF(Tchg_req<D61, 0, (3300*Tchg_req/Vcc_max)) -> 4400 | E64: pF
B65: Cext_dvdt_cal2 | C65: calculated value of capacitor at dVdT pin for required Icharge | D65: =(3300*Cout/Icharge_req/1000) -> 14520 | E65: pF
B66: SELECT A CAPACITOR WITH THE CLOSEST POSSIBLE VALUE to max(Cext_dvdt_cal1, Cext_dvdt_cal2) | G66: =(MAX(D64,D65))/1000 -> 14.52
B67: CdVdT_ext | C67: The external capacitor connecetd across dVdT pin (OPEN, or >=1nF) | D67: =G68 -> 15 | E67: nf | F67: 0.1
B68: Icharge | C68: Charging Current through load cap as per dVdT setting | D68: =IF(Cdvdt_ext="OPEN",D60*1000,(Cout*3300/Cdvdt_ext/1000)) -> 968 | E68: mA | F68: =SQRT(F70^2+F15^2) -> 0.1414213562 | G68: =IF(G66>1,INDEX('Cap Tables'!B4:B75,1+MATCH(G66,'Cap Tables'!B4:B75)),(INDEX('Cap Tables'!A4:A75,1+MATCH(G66*10,'Cap Tables'!A4:A75))/10)) -> 15
B69: Does Device Enter Current Limit during start-up? | D69: =((D23) >= Ilimit_final) -> FALSE | G69: =Cout*0.001*Vcc_max/Ilimit_final -> 6.044579227
B70: Tchg_dvdt | C70: charge time set | D70: =IF(D69, G69, IF(Cdvdt_ext="OPEN",D61,Vcc_max*Cdvdt_ext*1000/3300)) -> 68.18181818 | E70: ms | F70: =F67 -> 0.1
C72: Will the System have glitch-free startup? | D72: =TSD!C7 -> YES
B73: For CdVdt > 10 nF, it's recommended to add a 100-Ω resistor in series with the capacitor on the dVdt pin | D73: =IF(TSD!E6>=146.1,CONCATENATE("Device may be experiencing high average or gradually increasing power dissipation during startup."," Here are a few options to try out to achieve successful startup: 1. Decrease resistive load 2. Decrease CDVDT cap 3. Decrease ambient temperature"),IF(TSD!F6>=58,CONCATENATE("Device may be experiencing high peak power dissipation during early phase of startup."," Here are a few options to try out to achieve successful startup: 1. Decrease output load cap 2. Increase CDVDT cap 3. Decrease CC load during start-up 4. Decrease CP load during start-up.")," ")) -> 
B79: Steady state Voltage drop & Power dissipation
B80: Parameter | C80: Description | D80: Value | E80: Units | F80: Tolerance
B81: Vdrop | C81: Maximum voltage drop across device @ 25 degC | D81: =Imax*Rdson_25deg -> 60 | E81: mV
B82: Pdiss_Imax | C82: Steady state power dissipation with Max current @ 25degC | D82: =Imax^2*Rdson_25deg -> 600 | E82: mW
B84: Setting Overcurrent Blanking Interval (tITIMER)
B85: Parameter | C85: Description | D85: Value | E85: Units | F85: Tolerance
B86: CITIMER_cal | C86: Calculated Capacitor value at ITIMER pin | D86: =D26*2/1.51 -> 2.649006623 | E86: nF
B87: CITIMER_sel | C87: Select Closest value as CITIMER_cal | D87: =G87 -> 2.7 | E87: nF | F87: 0.1 | G87: =INDEX('Cap Tables'!B4:B75,1+MATCH(D86,'Cap Tables'!B4:B75)) -> 2.7
B88: tITIMER_final | C88: Final Load transient blanking interval | D88: =D87*1.51/2 -> 2.0385 | E88: ms
B90: Parameters internal to Device
B91: Internal FET Parameters
B92: Parameter | C92: Description | D92: Value | E92: Units | F92: Tolerance
B93: VIN(Max) | C93: Maximum input voltage | D93: 16 | E93: V
B94: ID(max) | C94: FET drain-source current rating (maximum) | D94: 10 | E94: A
B95: Rds(on)(typ) | C95: FET Rds(on) for –40°C ≤ TJ ≤ 125°C | D95: 6 | E95: mOhm
B97: Thermal Parameters
B98: Tj(max) | C98: Device maximum junction temperature | D98: 154 | E98: C
B99: RJA | C99: Junction to ambient thermal resistance | D99: 49.7 | E99: C/W
B101: Internal References
B102: UVref | C102: Internal Undervoltage reference (Falling) | D102: 1.1 | E102: V | F102: 0.063
B103: OVref | C103: Internal Overvoltage reference (Rising) | D103: 1.2 | E103: V | F103: 0.03
B104: GainIMON | C104: Current monitor gain | D104: 95 | E104: uA/A | F104: 0.037
B105: PGTH | C105: Internal Power good reference(Rising) | D105: 1.2 | E105: v

Sheet TSD (hidden)
B2: VIN (V) | C2: =Vcc_max -> 15
E4: VDS | F4: 5.469 | AC4: CLOAD (µF) | AD4: =Cout -> 4400 | AF4: ='Calculation Sheet'!D16 -> YES
E5: MAX FET temp | F5: MAX TREL | AC5: RLOAD (STARTUP) (Ω) | AD5: =IF(AF4="NO",1000000,Rlstart) -> 20
B6: MAX AMBIENT TEMPERATURE (⁰C) | C6: ='Calculation Sheet'!D27 -> 25 | E6: =MAX(P27:P2027) -> 132.0772587 | F6: =MAX(AF27:AF2027) -> 29.63104319 | AC6: VONTH (CR) (V) | AD6: ='Calculation Sheet'!D17 -> 0
B7: successful startup | C7: =IF(AND(F6<58,E6<146.01),"YES",IF(AND(F6<60,E6<160),"MARGINAL",IF(OR(F6>=60,E6>=160),"NO","Unable to decide"))) -> YES | AC7: ILOAD (STARTUP) (A) | AD7: =IF(AF4="NO",0,'Calculation Sheet'!D20) -> 0
AC8: VONTH (CC) (V) | AD8: ='Calculation Sheet'!D19 -> 3
AC9: PLOAD (STARTUP) (W) | AD9: =IF(AF4="NO",0,'Calculation Sheet'!D22) -> 0
AC10: VONTH (CP) (V) | AD10: ='Calculation Sheet'!D21 -> 8
AC11: TSTARTUP (ms) | AD11: =Tchg_dvdt -> 68.18181818
B12: CTS sensor temp | F12: TS sensor temp | AC12: SLEW RATE (mV/µs) | AD12: =Vcc_max/Tchg_dvdt -> 0.22
B13: τ (s) | C13: R (Ω) | D13: C (F) | F13: τ (s) | G13: R (Ω) | H13: C (F) | AC13: IINRUSH (A) | AD13: =IF('Calculation Sheet'!D69="TRUE",Ilimit_final,Icharge/1000) -> 0.968
B14: 0.00455355421 | C14: 0.4817344773 | D14: =B14/C14 -> 0.009452415022 | F14: 0.002059136407 | G14: 0.9020323785 | H14: =F14/G14 -> 0.002282774383
B15: 0.004553589382 | C15: 0.2582470642 | D15: 0.01763268596 | F15: 4.844920828e-05 | G15: 0.2231247024 | H15: 0.0002171395984
B16: 0.004493981307 | C16: 0.007691155651 | D16: 0.5843050786 | F16: 0.000352988209 | G16: 0.6616406408 | H16: 0.000533504424
B17: 0.03 | C17: 2.937147394 | D17: 0.01021399201 | F17: 0.001958800571 | G17: 0.7004425598 | H17: 0.002796518492
B18: 0.03 | C18: 2.465474457 | D18: 0.01216804332 | F18: 0.001997375776 | G18: 0.01641406054 | H18: 0.1216868776
B19: 0.03 | C19: 1.814822106 | D19: 0.01653054583 | F19: 0.03 | G19: 0.07972086493 | H19: 0.376313027
B20: 0.03 | C20: 1.393333328 | D20: 0.02153110057 | F20: 0.03 | G20: 2.014533617 | H20: 0.01489178425
F21: 0.03 | G21: 4.237623926 | H21: 0.007079438979
F22: 0.03 | G22: 3.426160656 | H22: 0.008756156823
A26: SERIAL NO. | B26: TIME (ms) | C26: VOUT (V) | D26: P_INRUSH (W) | E26: HFET τ1 | F26: HFET τ2 | G26: HFET τ3 | H26: HFET τ4 | I26: HFET τ5 | J26: HFET τ6 | K26: HFET τ7 | L26: HFET τ8 | M26: HFET τ9 | P26: HFET TEMPERATURE (⁰C) | Q26: CONTROLLER τ1 | R26: CONTROLLER τ2 | S26: CONTROLLER τ3 | T26: CONTROLLER τ4 | U26: CONTROLLER τ5 | V26: CONTROLLER τ6 | W26: CONTROLLER τ7 | Z26: CONTROLLER TEMPERATURE (⁰C) | AC26: ICR | AD26: ICC | AE26: ICP | AF26: FET-cont temp
A27: 0 | B27: =($AD$11/2000)*(A27) -> 0 | C27: =$AD$13*B27*10^-3/($AD$4*10^-6) -> 0 | D27: =(Vcc_max-C27)*($AD$13+IF(C27>=$AD$8,$AD$7,0)+(IF(C27>=$AD$6,C27,0)/$AD$5)+IF(C27>$AD$10,($AD$9/C27),0)) -> 14.52 | E27: 0 | F27: 0 | G27: 0 | H27: 0 | I27: 0 | J27: 0 | K27: 0 | L27: 0 | M27: 0 | P27: =$C$6 -> 25 | Q27: 0 | R27: 0 | S27: 0 | T27: 0 | U27: 0 | V27: 0 | W27: 0 | Z27: =$C$6 -> 25 | AC27: =IF(C27>=$AD$6,C27,0)/$AD$5 -> 0 | AD27: =IF(C27>=$AD$8,$AD$7,0) -> 0 | AE27: =IF(C27>$AD$10,($AD$9/C27),0) -> 0 | AF27: =(P27-Z27)*IF((Vcc_max-C27)>$F$4,1,0) -> 0
A28: 1 | B28: 0.03409090909 | C28: 0.0075 | D28: =IF(OR(P27>=160,AF27>=60,D27=0),0, (Vcc_max-C28)*($AD$13+IF(C28>=$AD$8,$AD$7,0)+(IF(C28>=$AD$6,C28,0)/$AD$5)+IF(C28>$AD$10,($AD$9/C28),0))) -> 14.51836219 | E28: =(D27+((((EXP(-(B28-B27)*10^-3/$F$14)))*(E27-D27)))) -> 0.2384130195 | F28: =(D27+((((EXP(-(B28-B27)*10^-3/$F$15)))*(F27-D27)))) -> 7.335795644 | G28: =(D27+((((EXP(-(B28-B27)*10^-3/$F$16)))*(G27-D27)))) -> 1.33672514 | H28: =(D27+((((EXP(-(B28-B27)*10^-3/$F$17)))*(H27-D27)))) -> 0.2505193255 | I28: =(D27+((((EXP(-(B28-B27)*10^-3/$F$18)))*(I27-D27)))) -> 0.2457222342 | J28: =(D27+((((EXP(-(B28-B27)*10^-3/$F$19)))*(JW27-D27)))) -> 0.01649062855 | K28: =(D27+((((EXP(-(B28-B27)*10^-3/$F$20)))*(K27-D27)))) -> 0.01649062855 | L28: =(D27+((((EXP(-(B28-B27)*10^-3/$F$21)))*(L27-D27)))) -> 0.01649062855 | M28: =(D27+((((EXP(-(B28-B27)*10^-3/$F$22)))*(M27-D27)))) -> 0.01649062855 | P28: =$C$6+(E28*$G$14)+(F28*$G$15)+(G28*$G$16)+(H28*$G$17)+(I28*$G$18)+(J28*$G$19)+(K28*$G$20)+(L28*$G$21)+(M28*$G$22) -> 28.07670906 | Q28: =(D27+((((EXP(-(B28-B27)*10^-3/$B$14)))*(Q27-D27)))) -> 0.1083003835 | R28: =(D27+((((EXP(-(B28-B27)*10^-3/$B$15)))*(R27-D27)))) -> 0.1082995501 | S28: =(D27+((((EXP(-(B28-B27)*10^-3/$B$16)))*(S27-D27)))) -> 0.1097305916 | T28: =(D27+((((EXP(-(B28-B27)*10^-3/$B$17)))*(T27-D27)))) -> 0.01649062855 | U28: =(D27+((((EXP(-(B28-B27)*10^-3/$B$18)))*(U27-D27)))) -> 0.01649062855 | V28: =(D27+((((EXP(-(B28-B27)*10^-3/$B$19)))*(V27-D27)))) -> 0.01649062855 | W28: =(D27+((((EXP(-(B28-B27)*10^-3/$B$20)))*(W27-D27)))) -> 0.01649062855 | Z28: =$C$6+(Q28*$C$14)+(R28*$C$15)+(S28*$C$16)+(T28*$C$17)+(U28*$C$18)+(V28*$C$19)+(W28*$C$20) -> 25.22298115 | AC28: 0.000375 | AD28: 0 | AE28: 0 | AF28: 2.853727902
A29: 2 | B29: 0.06818181818 | C29: 0.015 | D29: 14.51671875 | E29: 0.4728844933 | F29: 10.96457253 | G29: 2.550239301 | H29: 0.4966880838 | I29: 0.4872583898 | J29: 0.01648876846 | K29: 0.0329606683 | L29: 0.0329606683 | M29: 0.0329606683 | P29: =$C$6+(E29*$G$14)+(F29*$G$15)+(G29*$G$16)+(H29*$G$17)+(I29*$G$18)+(J29*$G$19)+(K29*$G$20)+(L29*$G$21)+(M29*$G$22) -> 30.23658377 | Q29: 0.2157807706 | R29: 0.2157791163 | S29: 0.2186195495 | T29: 0.0329606683 | U29: 0.0329606683 | V29: =(D28+((((EXP(-(B29-B28)*10^-3/$B$19)))*(V28-D28)))) -> 0.0329606683 | W29: =(D28+((((EXP(-(B29-B28)*10^-3/$B$20)))*(W28-D28)))) -> 0.0329606683 | Z29: =$C$6+(Q29*$C$14)+(R29*$C$15)+(S29*$C$16)+(T29*$C$17)+(U29*$C$18)+(V29*$C$19)+(W29*$C$20) -> 25.44517177 | AC29: 0.00075 | AD29: 0 | AE29: 0 | AF29: 4.791411998
A30: 3 | B30: 0.1022727273 | C30: 0.0225 | D30: 14.51506969 | E30: 0.7034790478 | F30: 12.75918815 | G30: 3.651884887 | H30: 0.7385812399 | I30: 0.7246792124 | J30: 0.01648690197 | K30: 0.04941013624 | L30: 0.04941013624 | M30: 0.04941013624 | P30: 31.90643643 | Q30: 0.3224472353 | R30: 0.3224447725 | S30: 0.3266731916 | T30: 0.04941013624 | U30: 0.04941013624 | V30: 0.04941013624 | W30: 0.04941013624 | Z30: 25.66657654 | AC30: 0.001125 | AD30: 0 | AE30: 0 | AF30: 6.239859888
A31: 4 | B31: 0.1363636364 | C31: 0.03 | D31: 14.513415 | E31: 0.9302602481 | F31: 13.64629477 | G31: 4.651960109 | H31: 0.9762724654 | I31: 0.9580542509 | J31: 0.0164850291 | K31: 0.06583904936 | L31: 0.06583904936 | M31: 0.06583904936 | P31: 33.29995001 | Q31: 0.4283058066 | R31: 0.4283025476 | S31: 0.4338977881 | T31: 0.06583904936 | U31: 0.06583904936 | V31: 0.06583904936 | W31: 0.06583904936 | Z31: 25.88720012 | AC31: 0.0015 | AD31: 0 | AE31: 0 | AF31: 7.412749891
A32: 5 | B32: 0.1704545455 | C32: 0.0375 | D32: 14.51175469 | E32: 1.153290616 | F32: 14.08438133 | G32: 5.559815113 | H32: 1.209834161 | I32: 1.187451877 | J32: 0.01648314985 | K32: 0.08224742459 | L32: 0.08224742459 | M32: 0.08224742459 | P32: 34.52571954 | Q32: 0.5333624683 | R32: 0.5333584251 | S32: 0.5402995617 | T32: 0.08224742459 | U32: 0.08224742459 | V32: 0.08224742459 | W32: 0.08224742459 | Z32: 26.10704712 | AC32: 0.001875 | AD32: 0 | AE32: 0 | AF32: 8.418672424
A33: 6 | B33: 0.2045454545 | C33: 0.045 | D33: 14.51008875 | E33: 1.372631646 | F33: 14.30029893 | G33: 6.383939264 | H33: 1.439337478 | I33: 1.412939305 | J33: 0.0164812642 | K33: 0.09863527889 | L33: 0.09863527889 | M33: 0.09863527889 | P33: 35.64008461 | Q33: 0.6376231596 | R33: 0.6376183443 | S33: 0.6458846882 | T33: 0.09863527889 | U33: 0.09863527889 | V33: 0.09863527889 | W33: 0.09863527889 | Z33: 26.32612214 | AC33: 0.00225 | AD33: 0 | AE33: 0 | AF33: 9.313962468
A34: 7 | B34: 0.2386363636 | C34: 0.0525 | D34: 14.50841719 | E34: 1.588343823 | F34: 14.40628896 | G34: 7.132040387 | H34: 1.664852339 | I34: 1.634582612 | J34: 0.01647937216 | K34: 0.1150026292 | L34: 0.1150026292 | M34: 0.1150026292 | P34: 36.67329363 | Q34: 0.7410937756 | R34: 0.7410882 | S34: 0.7506592966 | T34: 0.1150026292 | U34: 0.1150026292 | V34: 0.1150026292 | W34: 0.1150026292 | Z34: 26.54442974 | AC34: 0.002625 | AD34: 0 | AE34: 0 | AF34: 10.12886389
A35: 8 | B35: 0.2727272727 | C35: 0.06 | D35: 14.50674 | E35: 1.80048664 | F35: 14.45788619 | G35: 7.811116717 | H35: 1.886447464 | I35: 1.852446758 | J35: 0.01647747374 | K35: 0.1313494923 | L35: 0.1313494923 | M35: 0.1313494923 | P35: 37.64247112 | Q35: 0.8437801671 | R35: 0.8437738429 | S35: 0.8546294696 | T35: 0.1313494923 | U35: 0.1313494923 | V35: 0.1313494923 | W35: 0.1313494923 | Z35: 26.76197443 | AC35: 0.003 | AD35: 0 | AE35: 0 | AF35: 10.88049669
A36: 9 | B36: 0.3068181818 | C36: 0.0675 | D36: 14.50505719 | E36: 2.009118612 | F36: 14.48256812 | G36: 8.427522224 | H36: 2.104190382 | I36: 2.066595602 | J36: 0.01647556893 | K36: 0.1476758852 | L36: 0.1476758852 | M36: 0.1476758852 | P36: 38.55805332 | Q36: 0.9456881417 | R36: 0.9456810804 | S36: 0.957801244 | T36: 0.1476758852 | U36: 0.1476758852 | V36: 0.1476758852 | W36: 0.1476758852 | Z36: 26.9787607 | AC36: 0.003375 | AD36: 0 | AE36: 0 | AF36: 11.57929262
A37: 10 | B37: 0.3409090909 | C37: 0.075 | D37: 14.50336875 | E37: 2.214297293 | F37: 14.49393005 | G37: 8.987025928 | H37: 2.318147461 | I37: 2.277091922 | J37: 0.01647365773 | K37: 0.1639818248 | L37: 0.1639818248 | M37: 0.1639818248 | P37: 39.42699032 | Q37: 1.046823463 | R37: 1.046815676 | S37: 1.060180611 | T37: 0.1639818248 | U37: 0.1639818248 | V37: 0.1639818248 | W37: 0.1639818248 | Z37: 27.19479301 | AC37: 0.00375 | AD37: 0 | AE37: 0 | AF37: 12.2321973
A38: 11 | B38: 0.375 | C38: 0.0825 | D38: 14.50167469 | E38: 2.416079293 | F38: 14.49869867 | G38: 9.494865744 | H38: 2.528383922 | I38: 2.483997436 | J38: 0.01647174014 | K38: 0.1802673278 | L38: 0.1802673278 | M38: 0.1802673278 | P38: 40.25434652 | Q38: 1.147191853 | R38: 1.147183352 | S38: 1.161773516 | T38: 0.1802673278 | U38: 0.1802673278 | V38: 0.1802673278 | W38: 0.1802673278 | Z38: 27.41007579 | AC38: 0.004125 | AD38: 0 | AE38: 0 | AF38: 12.84427073
A39: 12 | B39: 0.4090909091 | C39: 0.09 | D39: 14.499975 | E39: 2.614520291 | F39: 14.50020221 | G39: 9.955797382 | H39: 2.734963862 | I39: 2.687372815 | J39: 0.01646981616 | K39: 0.196532411 | L39: 0.196532411 | M39: 0.196532411 | P39: 41.04410741 | Q39: 1.246798989 | R39: 1.246789784 | S39: 1.262585861 | T39: 0.196532411 | U39: 0.196532411 | V39: 0.196532411 | W39: 0.196532411 | Z39: 27.62461343 | AC39: 0.0045 | AD39: 0 | AE39: 0 | AF39: 13.41949398
A40: 13 | B40: 0.4431818182 | C40: 0.0975 | D40: 14.49826969 | E40: 2.809675053 | F40: 14.50008742 | G40: 10.37413874 | H40: 2.937950271 | I40: 2.887277705 | J40: 0.01646788579 | K40: 0.2127770914 | L40: 0.2127770914 | M40: 0.2127770914 | P40: 41.79959195 | Q40: 1.345650507 | R40: 1.34564061 | S40: 1.362623502 | T40: 0.2127770914 | U40: 0.2127770914 | V40: 0.2127770914 | W40: 0.2127770914 | Z40: 27.83841028 | AC40: 0.004875 | AD40: 0 | AE40: 0 | AF40: 13.96118168
A41: 14 | B41: 0.4772727273 | C41: 0.105 | D41: 14.49655875 | E41: 3.001597445 | F41: 14.49916907 | G41: 10.75381019 | H41: 3.137405052 | I41: 3.083770741 | J41: 0.01646594904 | K41: 0.2290013856 | L41: 0.2290013856 | M41: 0.2290013856 | P41: 42.52366891 | Q41: 1.443752001 | R41: 1.443741424 | S41: 1.46189225 | T41: 0.2290013856 | U41: 0.2290013856 | V41: 0.2290013856 | W41: 0.2290013856 | Z41: 28.05147067 | AC41: 0.00525 | AD41: 0 | AE41: 0 | AF41: 14.47219824
A42: 15 | B42: 0.5113636364 | C42: 0.1125 | D42: 14.49484219 | E42: 3.19034045 | F42: 14.49785028 | G42: 11.09837122 | H42: 3.333389041 | I42: 3.276909568 | J42: 0.0164640059 | K42: 0.2452053105 | L42: 0.2452053105 | M42: 0.2452053105 | P42: 43.21887485 | Q42: 1.541109025 | R42: 1.541097777 | S42: 1.560397875 | T42: 0.2452053105 | U42: 0.2452053105 | V42: 0.2452053105 | W42: 0.2452053105 | Z42: 28.26379891 | AC42: 0.005625 | AD42: 0 | AE42: 0 | AF42: 14.95507594
A43: 16 | B43: 0.5454545455 | C43: 0.12 | D43: 14.49312 | E43: 3.37595618 | F43: 14.49633053 | G43: 11.41105359 | H43: 3.525962024 | I43: 3.466750854 | J43: 0.01646205636 | K43: 0.2613888827 | L43: 0.2613888827 | M43: 0.2613888827 | P43: 43.88748251 | Q43: 1.637727087 | R43: 1.63771518 | S43: 1.6581461 | T43: 0.2613888827 | U43: 0.2613888827 | V43: 0.2613888827 | W43: 0.2613888827 | Z43: 28.47539925 | AC43: 0.006 | AD43: 0 | AE43: 0 | AF43: 15.41208325
A44: 17 | B44: 0.5795454545 | C44: 0.1275 | D44: 14.49139219 | E44: 3.55849589 | F44: 14.49470851 | G44: 11.69479159 | H44: 3.715182756 | I44: 3.653350307 | J44: 0.01646010044 | K44: 0.277552119 | L44: 0.277552119 | M44: 0.277552119 | P44: 44.5315438 | Q44: 1.733611659 | R44: 1.733599103 | S44: 1.755142606 | T44: 0.277552119 | U44: 0.277552119 | V44: 0.277552119 | W44: 0.277552119 | Z44: 28.68627594 | AC44: 0.006375 | AD44: 0 | AE44: 0 | AF44: 15.84526786
A45: 18 | B45: 0.6136363636 | C45: 0.135 | D45: 14.48965875 | E45: 3.738009996 | F45: 14.49303304 | G45: 11.95224932 | H45: 3.901108976 | I45: 3.836762695 | J45: 0.01645813814 | K45: 0.2936950361 | L45: 0.2936950361 | M45: 0.2936950361 | P45: 45.15291931 | Q45: 1.828768169 | R45: 1.828754974 | S45: 1.851393034 | T45: 0.2936950361 | U45: 0.2936950361 | V45: 0.2936950361 | W45: 0.2936950361 | Z45: 28.89643318 | AC45: 0.00675 | AD45: 0 | AE45: 0 | AF45: 16.25648614
A46: 19 | B46: 0.6477272727 | C46: 0.1425 | D46: 14.48791969 | E46: 3.914548085 | F46: 14.49132828 | G46: 12.18584567 | H46: 4.08379743 | I46: 4.017041856 | J46: 0.01645616944 | K46: 0.3098176508 | L46: 0.3098176508 | M46: 0.3098176508 | P46: 45.75330037 | Q46: 1.923202005 | R46: 1.923188182 | S46: 1.946902977 | T46: 0.3098176508 | U46: 0.3098176508 | V46: 0.3098176508 | W46: 0.3098176508 | Z46: 29.10587514 | AC46: 0.007125 | AD46: 0 | AE46: 0 | AF46: 16.64742523
A47: 20 | B47: 0.6818181818 | C47: 0.15 | D47: 14.486175 | E47: 4.088158928 | F47: 14.48960619 | G47: 12.39777681 | H47: 4.263303882 | I47: 4.194240719 | J47: 0.01645419435 | K47: 0.3259199796 | L47: 0.3259199796 | M47: 0.3259199796 | P47: 46.33422681 | Q47: 2.016918517 | R47: 2.016904075 | S47: 2.041677989 | T47: 0.3259199796 | U47: 0.3259199796 | V47: 0.3259199796 | W47: 0.3259199796 | Z47: 29.31460596 | AC47: 0.0075 | AD47: 0 | AE47: 0 | AF47: 17.01962084
A48: 21 | B48: 0.7159090909 | C48: 0.1575 | D48: 14.48442469 | E48: 4.258890499 | F48: 14.48787268 | G48: 12.59003676 | H48: 4.439683137 | I48: 4.368411317 | J48: 0.01645221288 | K48: 0.3420020392 | L48: 0.3420020392 | M48: 0.3420020392 | P48: 46.89710193 | Q48: 2.109923011 | R48: 2.109907962 | S48: 2.135723583 | T48: 0.3420020392 | U48: 0.3420020392 | V48: 0.3420020392 | W48: 0.3420020392 | Z48: 29.52262977 | AC48: 0.007875 | AD48: 0 | AE48: 0 | AF48: 17.37447216
A49: 22 | B49: 0.75 | C49: 0.165 | D49: 14.48266875 | E49: 4.426789981 | F49: 14.48613069 | G49: 12.76443593 | H49: 4.612989051 | I49: 4.539604803 | J49: 0.01645022502 | K49: 0.3580638463 | L49: 0.3580638463 | M49: 0.3580638463 | P49: 47.44320554 | Q49: 2.202220758 | R49: 2.20220511 | S49: 2.229045227 | T49: 0.3580638463 | U49: 0.3580638463 | V49: 0.3580638463 | W49: 0.3580638463 | Z49: 29.72995064 | AC49: 0.00825 | AD49: 0 | AE49: 0 | AF49: 17.7132549
A50: 23 | B50: 0.7840909091 | C50: 0.1725 | D50: 14.48090719 | E50: 4.591903785 | F50: 14.48438165 | G50: 12.92261809 | H50: 4.783274554 | I50: 4.707871462 | J50: 0.01644823077 | K50: 0.3741054174 | L50: 0.3741054174 | M50: 0.3741054174 | P50: 47.97370545 | Q50: 2.293816985 | R50: 2.29380075 | S50: 2.321648351 | T50: 0.3741054174 | U50: 0.3741054174 | V50: 0.3741054174 | W50: 0.3741054174 | Z50: 29.93657263 | AC50: 0.008625 | AD50: 0 | AE50: 0 | AF50: 18.03713282
A51: 24 | B51: 0.8181818182 | C51: 0.18 | D51: 14.47914 | E51: 4.754277556 | F51: 14.48262628 | G51: 13.06607568 | H51: 4.950591661 | I51: 4.87326073 | J51: 0.01644623013 | K51: 0.3901267692 | L51: 0.3901267692 | M51: 0.3901267692 | P51: 48.48966787 | Q51: 2.384716885 | R51: 2.384700071 | S51: 2.413538342 | T51: 0.3901267692 | U51: 0.3901267692 | V51: 0.3901267692 | W51: 0.3901267692 | Z51: 30.14249976 | AC51: 0.009 | AD51: 0 | AE51: 0 | AF51: 18.34716811
A52: 25 | B52: 0.8522727273 | C52: 0.1875 | D52: 14.47736719 | E52: 4.913956194 | F52: 14.48086494 | G52: 13.19616374 | H52: 5.114991489 | I52: 5.035821206 | J52: 0.0164442231 | K52: 0.4061279182 | L52: 0.4061279182 | M52: 0.4061279182 | P52: 48.99206668 | Q52: 2.474925608 | R52: 2.474908226 | S52: 2.504720546 | T52: 0.4061279182 | U52: 0.4061279182 | V52: 0.4061279182 | W52: 0.4061279182 | Z52: 30.34773603 | AC52: 0.009375 | AD52: 0 | AE52: 0 | AF52: 18.64433066
A53: 26 | B53: 0.8863636364 | C53: 0.195 | D53: 14.47558875 | E53: 5.070983858 | F53: 14.47909781 | G53: 13.31411256 | H53: 5.276524274 | I53: 5.195600667 | J53: 0.01644220969 | K53: 0.422108881 | L53: 0.422108881 | M53: 0.422108881 | P53: 49.48179191 | Q53: 2.564448268 | R53: 2.564430327 | S53: 2.595200271 | T53: 0.422108881 | U53: 0.422108881 | V53: 0.422108881 | W53: 0.422108881 | Z53: 30.5522854 | AC53: 0.00975 | AD53: 0 | AE53: 0 | AF53: 18.92950651
A54: 27 | B54: 0.9204545455 | C54: 0.2025 | D54: 14.47380469 | E54: 5.225403986 | F54: 14.47732496 | G54: 13.42103917 | H54: 5.435239386 | I54: 5.352646081 | J54: 0.01644018988 | K54: 0.4380696742 | L54: 0.4380696742 | M54: 0.4380696742 | P54: 49.95965734 | Q54: 2.653289941 | R54: 2.653271449 | S54: 2.684982781 | T54: 0.4380696742 | U54: 0.4380696742 | V54: 0.4380696742 | W54: 0.4380696742 | Z54: 30.75615182 | AC54: 0.010125 | AD54: 0 | AE54: 0 | AF54: 19.20350551
A55: 28 | B55: 0.9545454545 | C55: 0.21 | D55: 14.472015 | E55: 5.377259298 | F55: 14.47554645 | G55: 13.51795778 | H55: 5.591185343 | I55: 5.50700362 | J55: 0.01643816369 | K55: 0.4540103142 | L55: 0.4540103142 | M55: 0.4540103142 | P55: 50.42640745 | Q55: 2.741455663 | R55: 2.74143663 | S55: 2.774073305 | T55: 0.4540103142 | U55: 0.4540103142 | V55: 0.4540103142 | W55: 0.4540103142 | Z55: 30.9593392 | AC55: 0.0105 | AD55: 0 | AE55: 0 | AF55: 19.46706825
A56: 29 | B56: 0.9886363636 | C56: 0.2175 | D56: 14.47021969 | E56: 5.526591817 | F56: 14.47376229 | G56: 13.6057892 | H56: 5.744409823 | I56: 5.658718677 | J56: 0.01643613111 | K56: 0.4699308175 | L56: 0.4699308175 | M56: 0.4699308175 | P56: 50.88272371 | Q56: 2.828950434 | R56: 2.82893087 | S56: 2.862477028 | T56: 0.4699308175 | U56: 0.4699308175 | V56: 0.4699308175 | W56: 0.4699308175 | Z56: 31.16185142 | AC56: 0.010875 | AD56: 0 | AE56: 0 | AF56: 19.72087229
A57: 30 | B57: 1.022727273 | C57: 0.225 | D57: 14.46841875 | E57: 5.673442872 | F57: 14.4719725 | G57: 13.6853695 | H57: 5.894959685 | I57: 5.807835875 | J57: 0.01643409214 | K57: 0.4858312006 | L57: 0.4858312006 | M57: 0.4858312006 | P57: 51.32923028 | Q57: 2.915779216 | R57: 2.915759131 | S57: 2.950199099 | T57: 0.4858312006 | U57: 0.4858312006 | V57: 0.4858312006 | W57: 0.4858312006 | Z57: 31.36369232 | AC57: 0.01125 | AD57: 0 | AE57: 0 | AF57: 19.96553796
A58: 31 | B58: 1.056818182 | C58: 0.2325 | D58: 14.46661219 | E58: 5.817853117 | F58: 14.47017707 | G58: 13.75745777 | H58: 6.042880979 | I58: 5.954399083 | J58: 0.01643204678 | K58: 0.5017114801 | L58: 0.5017114801 | M58: 0.5017114801 | P58: 51.76649922 | Q58: 3.001946936 | R58: 3.001926337 | S58: 3.037244626 | T58: 0.5017114801 | U58: 0.5017114801 | V58: 0.5017114801 | W58: 0.5017114801 | Z58: 31.56486574 | AC58: 0.011625 | AD58: 0 | AE58: 0 | AF58: 20.20163349
A59: 32 | B59: 1.090909091 | C59: 0.24 | D59: 14.4648 | E59: 5.959862536 | F59: 14.46837602 | G59: 13.8227432 | H59: 6.188218958 | I59: 6.098451426 | J59: 0.01642999504 | K59: 0.5175716723 | L59: 0.5175716723 | M59: 0.5175716723 | P59: 52.19505517 | Q59: 3.087458482 | R59: 3.087437378 | S59: 3.12361868 | T59: 0.5175716723 | U59: 0.5175716723 | V59: 0.5175716723 | W59: 0.5175716723 | Z59: 31.76537547 | AC59: 0.012 | AD59: 0 | AE59: 0 | AF59: 20.4296797
A60: 33 | B60: 1.125 | C60: 0.2475 | D60: 14.46298219 | E60: 6.099510458 | F60: 14.46656934 | G60: 13.88185157 | H60: 6.331018098 | I60: 6.240035301 | J60: 0.0164279369 | K60: 0.5334117936 | L60: 0.5334117936 | M60: 0.5334117936 | P60: 52.61537963 | Q60: 3.172318706 | R60: 3.172297107 | S60: 3.209326293 | T60: 0.5334117936 | U60: 0.5334117936 | V60: 0.5334117936 | W60: 0.5334117936 | Z60: 31.96522529 | AC60: 0.012375 | AD60: 0 | AE60: 0 | AF60: 20.65015434
A61: 34 | B61: 1.159090909 | C61: 0.255 | D61: 14.46115875 | E61: 6.236835565 | F61: 14.46475704 | G61: 13.93535101 | H61: 6.471322103 | I61: 6.379192386 | J61: 0.01642587238 | K61: 0.5492318605 | L61: 0.5492318605 | M61: 0.5492318605 | P61: 53.02791487 | Q61: 3.256532424 | R61: 3.256510338 | S61: 3.294372458 | T61: 0.5492318605 | U61: 0.5492318605 | V61: 0.5492318605 | W61: 0.5492318605 | Z61: 32.16441894 | AC61: 0.01275 | AD61: 0 | AE61: 0 | AF61: 20.86349593
A62: 35 | B62: 1.193181818 | C62: 0.2625 | D62: 14.45932969 | E62: 6.371875904 | F62: 14.46293911 | G62: 13.98375738 | H62: 6.609173927 | I62: 6.515963656 | J62: 0.01642380147 | K62: 0.5650318893 | L62: 0.5650318893 | M62: 0.5650318893 | P62: 53.43306742 | Q62: 3.340104416 | R62: 3.340081852 | S62: 3.378762132 | T62: 0.5650318893 | U62: 0.5650318893 | V62: 0.5650318893 | W62: 0.5650318893 | Z62: 32.36296013 | AC62: 0.013125 | AD62: 0 | AE62: 0 | AF62: 21.07010729
A63: 36 | B63: 1.227272727 | C63: 0.27 | D63: 14.457495 | E63: 6.504668898 | F63: 14.46111556 | G63: 14.02753902 | H63: 6.744615782 | I63: 6.650389389 | J63: 0.01642172417 | K63: 0.5808118965 | L63: 0.5808118965 | M63: 0.5808118965 | P63: 53.83121131 | Q63: 3.423039427 | R63: 3.423016393 | S63: 3.462500234 | T63: 0.5808118965 | U63: 0.5808118965 | V63: 0.5808118965 | W63: 0.5808118965 | Z63: 32.56085256 | AC63: 0.0135 | AD63: 0 | AE63: 0 | AF63: 21.27035875
A64: 37 | B64: 1.261363636 | C64: 0.2775 | D64: 14.45565469 | E64: 6.635251356 | F64: 14.45928638 | G64: 14.06712118 | H64: 6.877689149 | I64: 6.782509185 | J64: 0.01641964048 | K64: 0.5965718983 | L64: 0.5965718983 | M64: 0.5965718983 | P64: 54.22269096 | Q64: 3.505342166 | R64: 3.50531867 | S64: 3.545591644 | T64: 0.5965718983 | U64: 0.5965718983 | V64: 0.5965718983 | W64: 0.5965718983 | Z64: 32.75809988 | AC64: 0.013875 | AD64: 0 | AE64: 0 | AF64: 21.46459108
A65: 38 | B65: 1.295454545 | C65: 0.285 | D65: 14.45380875 | E65: 6.76365948 | F65: 14.45745158 | G65: 14.10288995 | H65: 7.008434798 | I65: 6.912361971 | J65: 0.01641755041 | K65: 0.6123119111 | L65: 0.6123119111 | M65: 0.6123119111 | P65: 54.60782384 | Q65: 3.587017307 | R65: 3.586993358 | S65: 3.628041208 | T65: 0.6123119111 | U65: 0.6123119111 | V65: 0.6123119111 | W65: 0.6123119111 | Z65: 32.95470574 | AC65: 0.01425 | AD65: 0 | AE65: 0 | AF65: 21.65311811
A66: 39 | B66: 1.329545455 | C66: 0.2925 | D66: 14.45195719 | E66: 6.889928882 | F66: 14.45561115 | G66: 14.13519587 | H66: 7.136892791 | I66: 7.039986017 | J66: 0.01641545394 | K66: 0.6280319513 | L66: 0.6280319513 | M66: 0.6280319513 | P66: 54.98690286 | Q66: 3.668069489 | R66: 3.668045095 | S66: 3.709853734 | T66: 0.6280319513 | U66: 0.6280319513 | V66: 0.6280319513 | W66: 0.6280319513 | Z66: 33.15067374 | AC66: 0.014625 | AD66: 0 | AE66: 0 | AF66: 21.83622912
A67: 40 | B67: 1.363636364 | C67: 0.3 | D67: 14.4501 | E67: 7.014094584 | F67: 14.45376509 | G67: 14.16435722 | H67: 7.263102502 | I67: 7.165418945 | J67: 0.01641335109 | K67: 0.643732035 | L67: 0.643732035 | M67: 0.643732035 | P67: 55.36019853 | Q67: 3.748503316 | R67: 3.748478485 | S67: 3.791033994 | T67: 0.643732035 | U67: 0.643732035 | V67: 0.643732035 | W67: 0.643732035 | Z67: 33.34600747 | AC67: 0.015 | AD67: 0 | AE67: 0 | AF67: 22.01419106
A68: 41 | B68: 1.397727273 | C68: 0.3075 | D68: 14.44823719 | E68: 7.136191038 | F68: 14.45191341 | G68: 14.19066298 | H68: 7.387102623 | I68: 7.288697741 | J68: 0.01641124185 | K68: 0.6594121787 | L68: 0.6594121787 | M68: 0.6594121787 | P68: 55.727961 | Q68: 3.828323359 | R68: 3.828298099 | S68: 3.871586722 | T68: 0.6594121787 | U68: 0.6594121787 | V68: 0.6594121787 | W68: 0.6594121787 | Z68: 33.54071048 | AC68: 0.015375 | AD68: 0 | AE68: 0 | AF68: 22.18725052
A69: 42 | B69: 1.431818182 | C69: 0.315 | D69: 14.44636875 | E69: 7.256252126 | F69: 14.45005611 | G69: 14.2143755 | H69: 7.508931182 | I69: 7.409858762 | J69: 0.01640912622 | K69: 0.6750723985 | L69: 0.6750723985 | M69: 0.6750723985 | P69: 56.09042183 | Q69: 3.907534154 | R69: 3.907508473 | S69: 3.95151662 | T69: 0.6750723985 | U69: 0.6750723985 | V69: 0.6750723985 | W69: 0.6750723985 | Z69: 33.73478632 | AC69: 0.01575 | AD69: 0 | AE69: 0 | AF69: 22.35563551
A70: 43 | B70: 1.465909091 | C70: 0.3225 | D70: 14.44449469 | E70: 7.374311177 | F70: 14.44819318 | G70: 14.23573303 | H70: 7.628625547 | I70: 7.528937753 | J70: 0.0164070042 | K70: 0.6907127106 | L70: 0.6907127106 | M70: 0.6907127106 | P70: 56.4477956 | Q70: 3.986140203 | R70: 3.986114108 | S70: 4.030828351 | T70: 0.6907127106 | U70: 0.6907127106 | V70: 0.6907127106 | W70: 0.6907127106 | Z70: 33.92823848 | AC70: 0.016125 | AD70: 0 | AE70: 0 | AF70: 22.51955712
A71: 44 | B71: 1.5 | C71: 0.33 | D71: 14.442615 | E71: 7.49040097 | F71: 14.44632463 | G71: 14.25495182 | H71: 7.746222444 | I71: 7.645969854 | J71: 0.01640487579 | K71: 0.7063331314 | L71: 0.7063331314 | M71: 0.7063331314 | P71: 56.80028145 | Q71: 4.064145974 | R71: 4.064119474 | S71: 4.109526544 | T71: 0.7063331314 | U71: 0.7063331314 | V71: 0.7063331314 | W71: 0.7063331314 | Z71: 34.12107045 | AC71: 0.0165 | AD71: 0 | AE71: 0 | AF71: 22.679211
A72: 45 | B72: 1.534090909 | C72: 0.3375 | D72: 14.44072969 | E72: 7.604553748 | F72: 14.44445045 | G72: 14.27222828 | H72: 7.861757963 | I72: 7.760989608 | J72: 0.016402741 | K72: 0.721933677 | L72: 0.721933677 | M72: 0.721933677 | P72: 57.14806439 | Q72: 4.141555904 | R72: 4.141529005 | S72: 4.187615794 | T72: 0.721933677 | U72: 0.721933677 | V72: 0.721933677 | W72: 0.721933677 | Z72: 34.31328569 | AC72: 0.016875 | AD72: 0 | AE72: 0 | AF72: 22.8347787
A73: 46 | B73: 1.568181818 | C73: 0.345 | D73: 14.43883875 | E73: 7.716801224 | F73: 14.44257065 | G73: 14.28774068 | H73: 7.975267575 | I73: 7.874030976 | J73: 0.01640059981 | K73: 0.7375143636 | L73: 0.7375143636 | M73: 0.7375143636 | P73: 57.49131655 | Q73: 4.218374394 | R73: 4.218347105 | S73: 4.26510066 | T73: 0.7375143636 | U73: 0.7375143636 | V73: 0.7375143636 | W73: 0.7375143636 | Z73: 34.50488762 | AC73: 0.01725 | AD73: 0 | AE73: 0 | AF73: 22.98642893
A74: 47 | B74: 1.602272727 | C74: 0.3525 | D74: 14.43694219 | E74: 7.827174589 | F74: 14.44068522 | G74: 14.30165091 | H74: 8.086786135 | I74: 7.985127342 | J74: 0.01639845224 | K74: 0.7530752073 | L74: 0.7530752073 | M74: 0.7530752073 | P74: 57.8301983 | Q74: 4.294605813 | R74: 4.294578141 | S74: 4.341985667 | T74: 0.7530752073 | U74: 0.7530752073 | V74: 0.7530752073 | W74: 0.7530752073 | Z74: 34.69587966 | AC74: 0.017625 | AD74: 0 | AE74: 0 | AF74: 23.13431864
A75: 48 | B75: 1.636363636 | C75: 0.36 | D75: 14.43504 | E75: 7.935704524 | F75: 14.43879416 | G75: 14.31410596 | H75: 8.196347899 | I75: 8.094311526 | J75: 0.01639629828 | K75: 0.7686162244 | L75: 0.7686162244 | M75: 0.7686162244 | P75: 58.16485926 | Q75: 4.370254499 | R75: 4.370226451 | S75: 4.418275305 | T75: 0.7686162244 | U75: 0.7686162244 | V75: 0.7686162244 | W75: 0.7686162244 | Z75: 34.88626519 | AC75: 0.018 | AD75: 0 | AE75: 0 | AF75: 23.27859407
A76: 49 | B76: 1.670454545 | C76: 0.3675 | D76: 14.43313219 | E76: 8.042421204 | F76: 14.43689748 | G76: 14.32523926 | H76: 8.303986531 | I76: 8.201615794 | J76: 0.01639413793 | K76: 0.7841374309 | L76: 0.7841374309 | M76: 0.7841374309 | P76: 58.49543919 | Q76: 4.445324756 | R76: 4.44529634 | S76: 4.493974032 | T76: 0.7841374309 | U76: 0.7841374309 | V76: 0.7841374309 | W76: 0.7841374309 | Z76: 35.07604756 | AC76: 0.018375 | AD76: 0 | AE76: 0 | AF76: 23.41939163
A77: 50 | B77: 1.704545455 | C77: 0.375 | D77: 14.43121875 | E77: 8.14735431 | F77: 14.43499518 | G77: 14.33517199 | H77: 8.409735114 | I77: 8.307071863 | J77: 0.01639197119 | K77: 0.7996388429 | L77: 0.7996388429 | M77: 0.7996388429 | P77: 58.82206889 | Q77: 4.519820856 | R77: 4.519792078 | S77: 4.569086271 | T77: 0.7996388429 | U77: 0.7996388429 | V77: 0.7996388429 | W77: 0.7996388429 | Z77: 35.26523011 | AC77: 0.01875 | AD77: 0 | AE77: 0 | AF77: 23.55683878
A78: 51 | B78: 1.738636364 | C78: 0.3825 | D78: 14.42929969 | E78: 8.250533036 | F78: 14.43308725 | G78: 14.34401414 | H78: 8.513626163 | I78: 8.410710917 | J78: 0.01638979807 | K78: 0.8151204766 | L78: 0.8151204766 | M78: 0.8151204766 | P78: 59.14487092 | Q78: 4.59374704 | R78: 4.593717908 | S78: 4.643616411 | T78: 0.8151204766 | U78: 0.8151204766 | V78: 0.8151204766 | W78: 0.8151204766 | Z78: 35.45381615 | AC78: 0.019125 | AD78: 0 | AE78: 0 | AF78: 23.69105477
A79: 52 | B79: 1.772727273 | C79: 0.39 | D79: 14.427375 | E79: 8.351986095 | F79: 14.4311737 | G79: 14.35186561 | H79: 8.615691627 | I79: 8.512563608 | J79: 0.01638761855 | K79: 0.8305823479 | L79: 0.8305823479 | M79: 0.8305823479 | P79: 59.4639603 | Q79: 4.667107517 | R79: 4.667078038 | S79: 4.717568808 | T79: 0.8305823479 | U79: 0.8305823479 | V79: 0.8305823479 | W79: 0.8305823479 | Z79: 35.64180897 | AC79: 0.0195 | AD79: 0 | AE79: 0 | AF79: 23.82215133
A80: 53 | B80: 1.806818182 | C80: 0.3975 | D80: 14.42544469 | E80: 8.451741729 | F80: 14.42925452 | G80: 14.35881708 | H80: 8.715962908 | I80: 8.612660073 | J80: 0.01638543265 | K80: 0.8460244731 | L80: 0.8460244731 | M80: 0.8460244731 | P80: 59.77944516 | Q80: 4.739906464 | R80: 4.739876645 | S80: 4.790947788 | T80: 0.8460244731 | U80: 0.8460244731 | V80: 0.8460244731 | W80: 0.8460244731 | Z80: 35.82921183 | AC80: 0.019875 | AD80: 0 | AE80: 0 | AF80: 23.95023333
A81: 54 | B81: 1.840909091 | C81: 0.405 | D81: 14.42350875 | E81: 8.549827718 | F81: 14.42732972 | G81: 14.36495088 | H81: 8.814470864 | I81: 8.711029937 | J81: 0.01638324036 | K81: 0.861446868 | L81: 0.861446868 | M81: 0.861446868 | P81: 60.09142728 | Q81: 4.812148028 | R81: 4.812117875 | S81: 4.863757639 | T81: 0.861446868 | U81: 0.861446868 | V81: 0.861446868 | W81: 0.861446868 | Z81: 36.01602797 | AC81: 0.02025 | AD81: 0 | AE81: 0 | AF81: 24.07539931
A82: 55 | B82: 1.875 | C82: 0.4125 | D82: 14.42156719 | E82: 8.646271384 | F82: 14.42539929 | G82: 14.37034177 | H82: 8.911245822 | I82: 8.807702324 | J82: 0.01638104168 | K82: 0.8768495488 | L82: 0.8768495488 | M82: 0.8768495488 | P82: 60.40000266 | Q82: 4.883836323 | R82: 4.883805844 | S82: 4.936002622 | T82: 0.8768495488 | U82: 0.8768495488 | V82: 0.8768495488 | W82: 0.8768495488 | Z82: 36.2022606 | AC82: 0.020625 | AD82: 0 | AE82: 0 | AF82: 24.19774206
A83: 56 | B83: 1.909090909 | C83: 0.42 | D83: 14.41962 | E83: 8.741099601 | F83: 14.42346323 | G83: 14.37505764 | H83: 9.006317584 | I83: 8.902705865 | J83: 0.01637883661 | K83: 0.8922325314 | L83: 0.8922325314 | M83: 0.8922325314 | P83: 60.70526193 | Q83: 4.954975436 | R83: 4.954944636 | S83: 5.007686961 | T83: 0.8922325314 | U83: 0.8922325314 | V83: 0.8922325314 | W83: 0.8922325314 | Z83: 36.38791292 | AC83: 0.021 | AD83: 0 | AE83: 0 | AF83: 24.31734901
A84: 57 | B84: 1.943181818 | C84: 0.4275 | D84: 14.41766719 | E84: 8.834338802 | F84: 14.42152155 | G84: 14.37916009 | H84: 9.099715441 | I84: 8.996068707 | J84: 0.01637662516 | K84: 0.9075958318 | L84: 0.9075958318 | M84: 0.9075958318 | P84: 61.00729085 | Q84: 5.025569419 | R84: 5.025538306 | S84: 5.078814852 | T84: 0.9075958318 | U84: 0.9075958318 | V84: 0.9075958318 | W84: 0.9075958318 | Z84: 36.5729881 | AC84: 0.021375 | AD84: 0 | AE84: 0 | AF84: 24.43430275
A85: 58 | B85: 1.977272727 | C85: 0.435 | D85: 14.41570875 | E85: 8.926014985 | F85: 14.41957425 | G85: 14.38270509 | H85: 9.191468174 | I85: 9.087818521 | J85: 0.01637440731 | K85: 0.922939466 | L85: 0.922939466 | M85: 0.922939466 | P85: 61.30617066 | Q85: 5.095622297 | R85: 5.095590877 | S85: 5.149390458 | T85: 0.922939466 | U85: 0.922939466 | V85: 0.922939466 | W85: 0.922939466 | Z85: 36.75748928 | AC85: 0.02175 | AD85: 0 | AE85: 0 | AF85: 24.54868138
A86: 59 | B86: 2.011363636 | C86: 0.4425 | D86: 14.41374469 | E86: 9.016153723 | F86: 14.41762132 | G86: 14.38574344 | H86: 9.281604071 | I86: 9.177982508 | J86: 0.01637218308 | K86: 0.9382634499 | L86: 0.9382634499 | M86: 0.9382634499 | P86: 61.60197846 | Q86: 5.165138064 | R86: 5.165106343 | S86: 5.219417909 | T86: 0.9382634499 | U86: 0.9382634499 | V86: 0.9382634499 | W86: 0.9382634499 | Z86: 36.94141959 | AC86: 0.022125 | AD86: 0 | AE86: 0 | AF86: 24.66055887
A87: 60 | B87: 2.045454545 | C87: 0.45 | D87: 14.411775 | E87: 9.104780166 | F87: 14.41566277 | G87: 14.38832126 | H87: 9.370150931 | I87: 9.26658741 | J87: 0.01636995246 | K87: 0.9535677995 | L87: 0.9535677995 | M87: 0.9535677995 | P87: 61.89478752 | Q87: 5.234120684 | R87: 5.234088669 | S87: 5.288901305 | T87: 0.9535677995 | U87: 0.9535677995 | V87: 0.9535677995 | W87: 0.9535677995 | Z87: 37.12478213 | AC87: 0.0225 | AD87: 0 | AE87: 0 | AF87: 24.77000538
A88: 61 | B88: 2.079545455 | C88: 0.4575 | D88: 14.40979969 | E88: 9.191919055 | F88: 14.41369859 | G88: 14.39048043 | H88: 9.457136073 | I88: 9.353659517 | J88: 0.01636771545 | K88: 0.9688525306 | L88: 0.9688525306 | M88: 0.9688525306 | P88: 62.18466757 | Q88: 5.302574092 | R88: 5.302541789 | S88: 5.357844716 | T88: 0.9688525306 | U88: 0.9688525306 | V88: 0.9688525306 | W88: 0.9688525306 | Z88: 37.30757999 | AC88: 0.022875 | AD88: 0 | AE88: 0 | AF88: 24.87708758
A89: 62 | B89: 2.113636364 | C89: 0.465 | D89: 14.40781875 | E89: 9.277594721 | F89: 14.41172879 | G89: 14.39225898 | H89: 9.542586345 | I89: 9.439224672 | J89: 0.01636547205 | K89: 0.9841176592 | L89: 0.9841176592 | M89: 0.9841176592 | P89: 62.47168512 | Q89: 5.370502193 | R89: 5.370469608 | S89: 5.42625218 | T89: 0.9841176592 | U89: 0.9841176592 | V89: 0.9841176592 | W89: 0.9841176592 | Z89: 37.48981621 | AC89: 0.02325 | AD89: 0 | AE89: 0 | AF89: 24.98186891
A90: 63 | B90: 2.147727273 | C90: 0.4725 | D90: 14.40583219 | E90: 9.361831099 | F90: 14.40975336 | G90: 14.39369143 | H90: 9.626528131 | I90: 9.523308284 | J90: 0.01636322226 | K90: 0.9993632011 | L90: 0.9993632011 | M90: 0.9993632011 | P90: 62.75590364 | Q90: 5.437908863 | R90: 5.437876002 | S90: 5.494127704 | T90: 0.9993632011 | U90: 0.9993632011 | V90: 0.9993632011 | W90: 0.9993632011 | Z90: 37.67149384 | AC90: 0.023625 | AD90: 0 | AE90: 0 | AF90: 25.0844098
A91: 64 | B91: =($AD$11/2000)*(A91) -> 2.181818182 | C91: =$AD$13*B91*10^-3/($AD$4*10^-6) -> 0.48 | D91: 14.40384 | E91: 9.444651727 | F91: 14.4077723 | G91: 14.39480912 | H91: 9.708987362 | I91: 9.605935328 | J91: 0.01636096609 | K91: 1.014589172 | L91: 1.014589172 | M91: 1.014589172 | P91: 63.03738382 | Q91: 5.504797949 | R91: 5.504764819 | S91: 5.561475267 | T91: 1.014589172 | U91: 1.014589172 | V91: 1.014589172 | W91: 1.014589172 | Z91: 37.85261588 | AC91: =IF(C91>=$AD$6,C91,0)/$AD$5 -> 0.024 | AD91: =IF(C91>=$AD$8,$AD$7,0) -> 0 | AE91: =IF(C91>$AD$10,($AD$9/C91),0) -> 0 | AF91: =(P91-Z91)*IF((Vcc_max-C91)>$F$4,1,0) -> 25.18476794
A92: 65 | B92: 2.215909091 | C92: 0.4875 | D92: =IF(OR(P91>=160,AF91>=60,D91=0),0, (Vcc_max-C92)*($AD$13+IF(C92>=$AD$8,$AD$7,0)+(IF(C92>=$AD$6,C92,0)/$AD$5)+IF(C92>$AD$10,($AD$9/C92),0))) -> 14.40184219 | E92: =(D91+((((EXP(-(B92-B91)*10^-3/$F$14)))*(E91-D91)))) -> 9.526079761 | F92: =(D91+((((EXP(-(B92-B91)*10^-3/$F$15)))*(F91-D91)))) -> 14.40578562 | G92: =(D91+((((EXP(-(B92-B91)*10^-3/$F$16)))*(G91-D91)))) -> 14.39564051 | H92: =(D91+((((EXP(-(B92-B91)*10^-3/$F$17)))*(H91-D91)))) -> 9.789989518 | I92: =(D91+((((EXP(-(B92-B91)*10^-3/$F$18)))*(I91-D91)))) -> 9.687130359 | J92: =(D91+((((EXP(-(B92-B91)*10^-3/$F$19)))*(JW91-D91)))) -> 0.01635870352 | K92: =(D91+((((EXP(-(B92-B91)*10^-3/$F$20)))*(K91-D91)))) -> 1.029795588 | L92: =(D91+((((EXP(-(B92-B91)*10^-3/$F$21)))*(L91-D91)))) -> 1.029795588 | M92: =(D91+((((EXP(-(B92-B91)*10^-3/$F$22)))*(M91-D91)))) -> 1.029795588 | P92: 63.3161838 | Q92: =(D91+((((EXP(-(B92-B91)*10^-3/$B$14)))*(Q91-D91)))) -> 5.571173271 | R92: =(D91+((((EXP(-(B92-B91)*10^-3/$B$15)))*(R91-D91)))) -> 5.571139877 | S92: =(D91+((((EXP(-(B92-B91)*10^-3/$B$16)))*(S91-D91)))) -> 5.628298814 | T92: =(D91+((((EXP(-(B92-B91)*10^-3/$B$17)))*(T91-D91)))) -> 1.029795588 | U92: =(D91+((((EXP(-(B92-B91)*10^-3/$B$18)))*(U91-D91)))) -> 1.029795588 | V92: 1.029795588 | W92: 1.029795588 | Z92: 38.03318534 | AC92: 0.024375 | AD92: 0 | AE92: 0 | AF92: 25.28299846
A93: 66 | B93: 2.25 | C93: 0.495 | D93: 14.39983875 | E93: 9.606137974 | F93: 14.40379332 | G93: 14.39621144 | H93: 9.869559644 | I93: 9.766917517 | J93: 0.01635643457 | K93: 1.044982465 | L93: 1.044982465 | M93: 1.044982465 | P93: =$C$6+(E93*$G$14)+(F93*$G$15)+(G93*$G$16)+(H93*$G$17)+(I93*$G$18)+(J93*$G$19)+(K93*$G$20)+(L93*$G$21)+(M93*$G$22) -> 63.5923593 | Q93: 5.637038617 | R93: 5.637004966 | S93: 5.694602265 | T93: 1.044982465 | U93: 1.044982465 | V93: =(D92+((((EXP(-(B93-B92)*10^-3/$B$19)))*(V92-D92)))) -> 1.044982465 | W93: =(D92+((((EXP(-(B93-B92)*10^-3/$B$20)))*(W92-D92)))) -> 1.044982465 | Z93: =$C$6+(Q93*$C$14)+(R93*$C$15)+(S93*$C$16)+(T93*$C$17)+(U93*$C$18)+(V93*$C$19)+(W93*$C$20) -> 38.21320518 | AC93: 0.02475 | AD93: 0 | AE93: 0 | AF93: 25.37915412
A94: 67 | B94: 2.284090909 | C94: 0.5025 | D94: 14.39782969 | E94: 9.684848764 | F94: 14.40179539 | G94: 14.39654538 | H94: 9.947722348 | I94: 9.84532053 | J94: 0.01635415923 | K94: 1.060149819 | L94: 1.060149819 | M94: 1.060149819 | P94: 63.86596383 | Q94: 5.702397751 | R94: 5.702363847 | S94: 5.760389507 | T94: 1.060149819 | U94: 1.060149819 | V94: 1.060149819 | W94: 1.060149819 | Z94: 38.39267835 | AC94: 0.025125 | AD94: 0 | AE94: 0 | AF94: 25.47328548
A95: 68 | B95: 2.318181818 | C95: 0.51 | D95: 14.395815 | E95: 9.762234164 | F95: 14.39979184 | G95: 14.39666361 | H95: 10.02450182 | I95: 9.922362729 | J95: 0.0163518775 | K95: 1.075297665 | L95: 1.075297665 | M95: 1.075297665 | P95: 64.13704883 | Q95: 5.767254404 | R95: 5.767220255 | S95: 5.825664398 | T95: 1.075297665 | U95: 1.075297665 | V95: 1.075297665 | W95: 1.075297665 | Z95: 38.57160778 | AC95: 0.0255 | AD95: 0 | AE95: 0 | AF95: 25.56544105
A96: 69 | B96: 2.352272727 | C96: 0.5175 | D96: 14.39379469 | E96: 9.838315845 | F96: 14.39778266 | G96: 14.39658549 | H96: 10.09992182 | I96: 9.998067046 | J96: 0.01634958938 | K96: 1.090426019 | L96: 1.090426019 | M96: 1.090426019 | P96: 64.40566382 | Q96: 5.831612285 | R96: 5.831577894 | S96: 5.890430768 | T96: 1.090426019 | U96: 1.090426019 | V96: 1.090426019 | W96: 1.090426019 | Z96: 38.74999638 | AC96: 0.025875 | AD96: 0 | AE96: 0 | AF96: 25.65566744
A97: 70 | B97: 2.386363636 | C97: 0.525 | D97: 14.39176875 | E97: 9.913115119 | F97: 14.39576786 | G97: 14.39632856 | H97: 10.17400571 | I97: 10.07245603 | J97: 0.01634729488 | K97: 1.105534897 | L97: 1.105534897 | M97: 1.105534897 | P97: 64.67185653 | Q97: 5.89547507 | R97: 5.895440444 | S97: 5.954692418 | T97: 1.105534897 | U97: 1.105534897 | V97: 1.105534897 | W97: 1.105534897 | Z97: 38.92784703 | AC97: 0.02625 | AD97: 0 | AE97: 0 | AF97: 25.74400949
A98: 71 | B98: 2.420454545 | C98: 0.5325 | D98: 14.38973719 | E98: 9.986652952 | F98: 14.39374743 | G98: 14.39590878 | H98: 10.24677645 | I98: 10.14555184 | J98: 0.01634499398 | K98: 1.120624315 | L98: 1.120624315 | M98: 1.120624315 | P98: 64.93567301 | Q98: 5.95884641 | R98: 5.958811556 | S98: 6.018453119 | T98: 1.120624315 | U98: 1.120624315 | V98: 1.120624315 | W98: 1.120624315 | Z98: 39.10516261 | AC98: 0.026625 | AD98: 0 | AE98: 0 | AF98: 25.8305104
A99: 72 | B99: 2.454545455 | C99: 0.54 | D99: 14.3877 | E99: 10.05894996 | F99: 14.39172137 | G99: 14.39534062 | H99: 10.3182566 | I99: 10.21737627 | J99: 0.0163426867 | K99: 1.135694288 | L99: 1.135694288 | M99: 1.135694288 | P99: 65.19715775 | Q99: 6.02172993 | R99: 6.021694851 | S99: 6.081716614 | T99: 1.135694288 | U99: 1.135694288 | V99: 1.135694288 | W99: 1.135694288 | Z99: 39.28194595 | AC99: 0.027 | AD99: 0 | AE99: 0 | AF99: 25.91521181
A100: 73 | B100: 2.488636364 | C100: 0.5475 | D100: 14.38565719 | E100: 10.13002644 | F100: 14.38968969 | G100: 14.39463722 | H100: 10.38846832 | I100: 10.28795073 | J100: 0.01634037303 | K100: 1.150744833 | L100: 1.150744833 | M100: 1.150744833 | P100: 65.45635378 | Q100: 6.084129225 | R100: 6.084093928 | S100: 6.144486619 | T100: 1.150744833 | U100: 1.150744833 | V100: 1.150744833 | W100: 1.150744833 | Z100: 39.45819988 | AC100: 0.027375 | AD100: 0 | AE100: 0 | AF100: 25.9981539
A101: 74 | B101: 2.522727273 | C101: 0.555 | D101: 14.38360875 | E101: 10.19990232 | F101: 14.38765239 | G101: 14.39381051 | H101: 10.45743341 | I101: 10.3572963 | J101: 0.01633805297 | K101: 1.165775964 | L101: 1.165775964 | M101: 1.165775964 | P101: 65.71330274 | Q101: 6.146047866 | R101: 6.146012355 | S101: 6.20676682 | T101: 1.165775964 | U101: 1.165775964 | V101: 1.165775964 | W101: 1.165775964 | Z101: 39.6339272 | AC101: 0.02775 | AD101: 0 | AE101: 0 | AF101: 26.07937554
A102: 75 | B102: 2.556818182 | C102: 0.5625 | D102: 14.38155469 | E102: 10.26859722 | F102: 14.38560946 | G102: 14.39287132 | H102: 10.52517327 | I102: 10.42543366 | J102: 0.01633572652 | K102: 1.180787697 | L102: 1.180787697 | M102: 1.180787697 | P102: 65.96804498 | Q102: 6.207489395 | R102: 6.207453677 | S102: 6.268560877 | T102: 1.180787697 | U102: 1.180787697 | V102: 1.180787697 | W102: 1.180787697 | Z102: 39.80913071 | AC102: 0.028125 | AD102: 0 | AE102: 0 | AF102: 26.15891427
A103: 76 | B103: 2.590909091 | C103: 0.57 | D103: 14.379495 | E103: 10.33613046 | F103: 14.38356091 | G103: 14.3918295 | H103: 10.59170895 | I103: 10.49238317 | J103: 0.01633339369 | K103: 1.195780049 | L103: 1.195780049 | M103: 1.195780049 | P103: 66.22061965 | Q103: 6.268457329 | R103: 6.268421408 | S103: 6.32987242 | T103: 1.195780049 | U103: 1.195780049 | V103: 1.195780049 | W103: 1.195780049 | Z103: 39.98381316 | AC103: 0.0285 | AD103: 0 | AE103: 0 | AF103: 26.2368065
A104: 77 | B104: 2.625 | C104: 0.5775 | D104: 14.37742969 | E104: 10.40252101 | F104: 14.38150673 | G104: 14.39069398 | H104: 10.65706113 | I104: 10.55816484 | J104: 0.01633105446 | K104: 1.210753034 | L104: 1.210753034 | M104: 1.210753034 | P104: 66.47106475 | Q104: 6.328955159 | R104: 6.32891904 | S104: 6.390705055 | T104: 1.210753034 | U104: 1.210753034 | V104: 1.210753034 | W104: 1.210753034 | Z104: 40.1579773 | AC104: 0.028875 | AD104: 0 | AE104: 0 | AF104: 26.31308745
A105: 78 | B105: 2.659090909 | C105: 0.585 | D105: 14.37535875 | E105: 10.46778754 | F105: 14.37944693 | G105: 14.38947285 | H105: 10.72125012 | I105: 10.62279833 | J105: 0.01632870885 | K105: 1.225706669 | L105: 1.225706669 | M105: 1.225706669 | P105: 66.71941718 | Q105: 6.388986349 | R105: 6.388950038 | S105: 6.451062356 | T105: 1.225706669 | U105: 1.225706669 | V105: 1.225706669 | W105: 1.225706669 | Z105: 40.33162586 | AC105: 0.02925 | AD105: 0 | AE105: 0 | AF105: 26.38779132
A106: 79 | B106: 2.693181818 | C106: 0.5925 | D106: 14.37328219 | E106: 10.53194841 | F106: 14.3773815 | G106: 14.3881735 | H106: 10.78429591 | I106: 10.68630298 | J106: 0.01632635685 | K106: 1.240640968 | L106: 1.240640968 | M106: 1.240640968 | P106: 66.96571284 | Q106: 6.448554338 | R106: 6.448517839 | S106: 6.510947875 | T106: 1.240640968 | U106: 1.240640968 | V106: 1.240640968 | W106: 1.240640968 | Z106: 40.50476153 | AC106: 0.029625 | AD106: 0 | AE106: 0 | AF106: 26.46095131
A107: 80 | B107: 2.727272727 | C107: 0.6 | D107: 14.3712 | E107: 10.59502169 | F107: 14.37531044 | G107: 14.38680259 | H107: 10.84621812 | I107: 10.7486978 | J107: 0.01632399846 | K107: 1.255555948 | L107: 1.255555948 | M107: 1.255555948 | P107: 67.20998666 | Q107: 6.507662538 | R107: 6.507625856 | S107: 6.570365133 | T107: 1.255555948 | U107: 1.255555948 | V107: 1.255555948 | W107: 1.255555948 | Z107: 40.67738702 | AC107: 0.03 | AD107: 0 | AE107: 0 | AF107: 26.53259964
A108: 81 | B108: 2.761363636 | C108: 0.6075 | D108: 14.36911219 | E108: 10.65702513 | F108: 14.37323377 | G108: 14.3853662 | H108: 10.90703603 | I108: 10.81000147 | J108: 0.01632163368 | K108: 1.270451624 | L108: 1.270451624 | M108: 1.270451624 | P108: 67.45227265 | Q108: 6.566314337 | R108: 6.566277478 | S108: 6.629317628 | T108: 1.270451624 | U108: 1.270451624 | V108: 1.270451624 | W108: 1.270451624 | Z108: 40.84950498 | AC108: 0.030375 | AD108: 0 | AE108: 0 | AF108: 26.60276766
A109: 82 | B109: 2.795454545 | C109: 0.615 | D109: 14.36701875 | E109: 10.71797623 | F109: 14.37115146 | G109: 14.38386984 | H109: 10.9667686 | I109: 10.87023237 | J109: 0.01631926251 | K109: 1.285328012 | L109: 1.285328012 | M109: 1.285328012 | P109: 67.69260394 | Q109: 6.624513097 | R109: 6.624476065 | S109: 6.687808829 | T109: 1.285328012 | U109: 1.285328012 | V109: 1.285328012 | W109: 1.285328012 | Z109: 41.02111807 | AC109: 0.03075 | AD109: 0 | AE109: 0 | AF109: 26.67148586
A110: 83 | B110: 2.829545455 | C110: 0.6225 | D110: 14.36491969 | E110: 10.77789215 | F110: 14.36906353 | G110: 14.38231851 | H110: 11.02543447 | I110: 10.92940855 | J110: 0.01631688496 | K110: 1.300185126 | L110: 1.300185126 | M110: 1.300185126 | P110: 67.93101284 | Q110: 6.682262156 | R110: 6.682224955 | S110: 6.745842179 | T110: 1.300185126 | U110: 1.300185126 | V110: 1.300185126 | W110: 1.300185126 | Z110: 41.19222891 | AC110: 0.031125 | AD110: 0 | AE110: 0 | AF110: 26.73878392
A111: 84 | B111: 2.863636364 | C111: 0.63 | D111: 14.362815 | E111: 10.83678982 | F111: 14.36696998 | G111: 14.38071676 | H111: 11.08305193 | I111: 10.98754777 | J111: 0.01631450101 | K111: 1.315022983 | L111: 1.315022983 | M111: 1.315022983 | P111: 68.16753086 | Q111: 6.739564825 | R111: 6.739527461 | S111: 6.803421097 | T111: 1.315022983 | U111: 1.315022983 | V111: 1.315022983 | W111: 1.315022983 | Z111: 41.36284012 | AC111: 0.0315 | AD111: 0 | AE111: 0 | AF111: 26.80469074
A112: 85 | B112: 2.897727273 | C112: 0.6375 | D112: 14.36070469 | E112: 10.89468584 | F112: 14.3648708 | G112: 14.37906871 | H112: 11.13963899 | I112: 11.04466748 | J112: 0.01631211068 | K112: 1.329841598 | L112: 1.329841598 | M112: 1.329841598 | P112: 68.40218879 | Q112: 6.796424392 | R112: 6.79638687 | S112: 6.860548973 | T112: 1.329841598 | U112: 1.329841598 | V112: 1.329841598 | W112: 1.329841598 | Z112: 41.53295428 | AC112: 0.031875 | AD112: 0 | AE112: 0 | AF112: 26.8692345
A113: 86 | B113: 2.931818182 | C113: 0.645 | D113: 14.35858875 | E113: 10.95159659 | F113: 14.362766 | G113: 14.3773781 | H113: 11.19521331 | I113: 11.10078484 | J113: 0.01630971396 | K113: 1.344640987 | L113: 1.344640987 | M113: 1.344640987 | P113: 68.63501665 | Q113: 6.852844121 | R113: 6.852806444 | S113: 6.917229175 | T113: 1.344640987 | U113: 1.344640987 | V113: 1.344640987 | W113: 1.344640987 | Z113: 41.70257398 | AC113: 0.03225 | AD113: 0 | AE113: 0 | AF113: 26.93244267
A114: 87 | B114: 2.965909091 | C114: 0.6525 | D114: 14.35646719 | E114: 11.00753814 | F114: 14.36065557 | G114: 14.37564833 | H114: 11.24979229 | I114: 11.15591672 | J114: 0.01630731085 | K114: 1.359421164 | L114: 1.359421164 | M114: 1.359421164 | P114: 68.86604381 | Q114: 6.908827249 | R114: 6.908789422 | S114: 6.973465042 | T114: 1.359421164 | U114: 1.359421164 | V114: 1.359421164 | W114: 1.359421164 | Z114: 41.87170176 | AC114: 0.032625 | AD114: 0 | AE114: 0 | AF114: 26.99434205
A115: 88 | B115: 3 | C115: 0.66 | D115: 14.35434 | E115: 11.06252631 | F115: 14.35853951 | G115: 14.3738825 | H115: 11.30339298 | I115: 11.2100797 | J115: 0.01630490136 | K115: 1.374182146 | L115: 1.374182146 | M115: 1.374182146 | P115: 69.09529896 | Q115: 6.964376992 | R115: 6.964339019 | S115: 7.02925989 | T115: 1.374182146 | U115: 1.374182146 | V115: 1.374182146 | W115: 1.374182146 | Z115: 42.04034016 | AC115: 0.033 | AD115: 0 | AE115: 0 | AF115: 27.0549588
A116: 89 | B116: 3.034090909 | C116: 0.6675 | D116: 14.35220719 | E116: 11.11657667 | F116: 14.35641784 | G116: 14.3720834 | H116: 11.35603218 | I116: 11.26329007 | J116: 0.01630248547 | K116: 1.388923948 | L116: 1.388923948 | M116: 1.388923948 | P116: 69.32281017 | Q116: 7.019496539 | R116: 7.019458426 | S116: 7.084617009 | T116: 1.388923948 | U116: 1.388923948 | V116: 1.388923948 | W116: 1.388923948 | Z116: 42.2084917 | AC116: 0.033375 | AD116: 0 | AE116: 0 | AF116: 27.11431847
A117: 90 | B117: 3.068181818 | C117: 0.675 | D117: 14.35006875 | E117: 11.16970453 | F117: 14.35429053 | G117: 14.37025357 | H117: 11.40772638 | I117: 11.31556388 | J117: 0.0163000632 | K117: 1.403646585 | L117: 1.403646585 | M117: 1.403646585 | P117: 69.54860489 | Q117: 7.074189058 | R117: 7.074150808 | S117: 7.139539665 | T117: 1.403646585 | U117: 1.403646585 | V117: 1.403646585 | W117: 1.403646585 | Z117: 42.37615889 | AC117: 0.03375 | AD117: 0 | AE117: 0 | AF117: 27.172446
A118: 91 | B118: 3.102272727 | C118: 0.6825 | D118: 14.34792469 | E118: 11.22192493 | F118: 14.3521576 | G118: 14.36839534 | H118: 11.45849178 | I118: 11.36691686 | J118: 0.01629763453 | K118: 1.418350073 | L118: 1.418350073 | M118: 1.418350073 | P118: 69.77270999 | Q118: 7.128457692 | R118: 7.12841931 | S118: 7.194031099 | T118: 1.418350073 | U118: 1.418350073 | V118: 1.418350073 | W118: 1.418350073 | Z118: 42.5433442 | AC118: 0.034125 | AD118: 0 | AE118: 0 | AF118: 27.22936579
A119: 92 | B119: 3.136363636 | C119: 0.69 | D119: 14.345775 | E119: 11.27325269 | F119: 14.35001905 | G119: 14.36651079 | H119: 11.50834431 | I119: 11.41736451 | J119: 0.01629519948 | K119: 1.433034426 | L119: 1.433034426 | M119: 1.433034426 | P119: 69.99515177 | Q119: 7.18230556 | R119: 7.18226705 | S119: 7.248094527 | T119: 1.433034426 | U119: 1.433034426 | V119: 1.433034426 | W119: 1.433034426 | Z119: 42.7100501 | AC119: 0.0345 | AD119: 0 | AE119: 0 | AF119: 27.28510166
A120: 93 | B120: 3.170454545 | C120: 0.6975 | D120: 14.34361969 | E120: 11.32370236 | F120: 14.34787487 | G120: 14.36460183 | H120: 11.55729963 | I120: 11.46692206 | J120: 0.01629275804 | K120: 1.447699661 | L120: 1.447699661 | M120: 1.447699661 | P120: 70.21595599 | Q120: 7.235735759 | R120: 7.235697125 | S120: 7.301733142 | T120: 1.447699661 | U120: 1.447699661 | V120: 1.447699661 | W120: 1.447699661 | Z120: 42.87627904 | AC120: 0.034875 | AD120: 0 | AE120: 0 | AF120: 27.33967695
A121: 94 | B121: 3.204545455 | C121: 0.705 | D121: 14.34145875 | E121: 11.37328829 | F121: 14.34572507 | G121: 14.3626702 | H121: 11.60537312 | I121: 11.51560446 | J121: 0.01629031022 | K121: 1.462345792 | L121: 1.462345792 | M121: 1.462345792 | P121: 70.43514789 | Q121: 7.288751362 | R121: 7.288712608 | S121: 7.35495011 | T121: 1.462345792 | U121: 1.462345792 | V121: 1.462345792 | W121: 1.462345792 | Z121: 43.04203346 | AC121: 0.03525 | AD121: 0 | AE121: 0 | AF121: 27.39311443
A122: 95 | B122: 3.238636364 | C122: 0.7125 | D122: 14.33929219 | E122: 11.42202455 | F122: 14.34356964 | G122: 14.36071745 | H122: 11.65257989 | I122: 11.56342645 | J122: 0.016287856 | K122: 1.476972835 | L122: 1.476972835 | M122: 1.476972835 | P122: 70.6527522 | Q122: 7.341355419 | R122: 7.34131655 | S122: 7.407748576 | T122: 1.476972835 | U122: 1.476972835 | V122: 1.476972835 | W122: 1.476972835 | Z122: 43.20731575 | AC122: 0.035625 | AD122: 0 | AE122: 0 | AF122: 27.44543645
A123: 96 | B123: 3.272727273 | C123: 0.72 | D123: 14.33712 | E123: 11.469925 | F123: 14.34140858 | G123: 14.35874502 | H123: 11.6989348 | I123: 11.61040248 | J123: 0.0162853954 | K123: 1.491580806 | L123: 1.491580806 | M123: 1.491580806 | P123: 70.86879314 | Q123: 7.393550959 | R123: 7.393511977 | S123: 7.46013166 | T123: 1.491580806 | U123: 1.491580806 | V123: 1.491580806 | W123: 1.491580806 | Z123: 43.37212832 | AC123: 0.036 | AD123: 0 | AE123: 0 | AF123: 27.49666482
A124: 97 | B124: 3.306818182 | C124: 0.7275 | D124: 14.33494219 | E124: 11.51700328 | F124: 14.33924191 | G124: 14.3567542 | H124: 11.74445246 | I124: 11.65654677 | J124: 0.0162829284 | K124: 1.506169719 | L124: 1.506169719 | M124: 1.506169719 | P124: 71.08329449 | Q124: 7.445340986 | R124: 7.445301897 | S124: 7.512102459 | T124: 1.506169719 | U124: 1.506169719 | V124: 1.506169719 | W124: 1.506169719 | Z124: 43.53647355 | AC124: 0.036375 | AD124: 0 | AE124: 0 | AF124: 27.54682094
A125: 98 | B125: 3.340909091 | C125: 0.735 | D125: 14.33275875 | E125: 11.56327279 | F125: 14.3370696 | G125: 14.35474617 | H125: 11.78914721 | I125: 11.70187331 | J125: 0.01628045502 | K125: 1.520739589 | L125: 1.520739589 | M125: 1.520739589 | P125: 71.29627954 | Q125: 7.496728482 | R125: 7.496689289 | S125: 7.563664045 | T125: 1.520739589 | U125: 1.520739589 | V125: 1.520739589 | W125: 1.520739589 | Z125: 43.70035381 | AC125: 0.03675 | AD125: 0 | AE125: 0 | AF125: 27.59592574
A126: 99 | B126: 3.375 | C126: 0.7425 | D126: 14.33056969 | E126: 11.60874673 | F126: 14.33489167 | G126: 14.35272198 | H126: 11.83303315 | I126: 11.74639583 | J126: 0.01627797525 | K126: 1.535290433 | L126: 1.535290433 | M126: 1.535290433 | P126: 71.50777114 | Q126: 7.547716409 | R126: 7.547677116 | S126: 7.61481947 | T126: 1.535290433 | U126: 1.535290433 | V126: 1.535290433 | W126: 1.535290433 | Z126: 43.86377142 | AC126: 0.037125 | AD126: 0 | AE126: 0 | AF126: 27.64399972
A127: 100 | B127: 3.409090909 | C127: 0.75 | D127: 14.328375 | E127: 11.65343805 | F127: 14.33270812 | G127: 14.35068262 | H127: 11.87612414 | I127: 11.79012785 | J127: 0.01627548909 | K127: 1.549822265 | L127: 1.549822265 | M127: 1.549822265 | P127: 71.71779171 | Q127: 7.598307705 | R127: 7.598268316 | S127: 7.66557176 | T127: 1.549822265 | U127: 1.549822265 | V127: 1.549822265 | W127: 1.549822265 | Z127: 44.02672873 | AC127: 0.0375 | AD127: 0 | AE127: 0 | AF127: 27.69106298
A128: 101 | B128: 3.443181818 | C128: 0.7575 | D128: 14.32617469 | E128: 11.69735952 | F128: 14.33051894 | G128: 14.34862896 | H128: 11.9184338 | I128: 11.83308266 | J128: 0.01627299655 | K128: 1.5643351 | L128: 1.5643351 | M128: 1.5643351 | P128: 71.92636324 | Q128: 7.648505285 | R128: 7.648465804 | S128: 7.715923918 | T128: 1.5643351 | U128: 1.5643351 | V128: 1.5643351 | W128: 1.5643351 | Z128: 44.18922805 | AC128: 0.037875 | AD128: 0 | AE128: 0 | AF128: 27.73713519
A129: 102 | B129: 3.477272727 | C129: 0.765 | D129: 14.32396875 | E129: 11.74052369 | F129: 14.32832414 | G129: 14.3465618 | H129: 11.95997551 | I129: 11.8752733 | J129: 0.01627049761 | K129: 1.578828954 | L129: 1.578828954 | M129: 1.578828954 | P129: 72.13350732 | Q129: 7.698312045 | R129: 7.698272475 | S129: 7.765878927 | T129: 1.578828954 | U129: 1.578828954 | V129: 1.578828954 | W129: 1.578828954 | Z129: 44.35127167 | AC129: 0.03825 | AD129: 0 | AE129: 0 | AF129: 27.78223565
A130: 103 | B130: 3.511363636 | C130: 0.7725 | D130: 14.32175719 | E130: 11.78294291 | F130: 14.32612371 | G130: 14.34448186 | H130: 12.00076242 | I130: 11.91671262 | J130: 0.01626799229 | K130: 1.593303841 | L130: 1.593303841 | M130: 1.593303841 | P130: 72.33924513 | Q130: 7.747730858 | R130: 7.747691203 | S130: 7.815439745 | T130: 1.593303841 | U130: 1.593303841 | V130: 1.593303841 | W130: 1.593303841 | Z130: 44.51286187 | AC130: 0.038625 | AD130: 0 | AE130: 0 | AF130: 27.82638326
A131: 104 | B131: 3.545454545 | C131: 0.78 | D131: 14.31954 | E131: 11.82462929 | F131: 14.32391765 | G131: 14.34238981 | H131: 12.04080746 | I131: 11.95741324 | J131: 0.01626548058 | K131: 1.607759778 | L131: 1.607759778 | M131: 1.607759778 | P131: 72.54359745 | Q131: 7.796764575 | R131: 7.796724838 | S131: 7.864609308 | T131: 1.607759778 | U131: 1.607759778 | V131: 1.607759778 | W131: 1.607759778 | Z131: 44.67400091 | AC131: 0.039 | AD131: 0 | AE131: 0 | AF131: 27.86959654
A132: 105 | B132: 3.579545455 | C132: 0.7875 | D132: 14.31731719 | E132: 11.8655948 | F132: 14.32170598 | G132: 14.34028623 | H132: 12.08012334 | I132: 11.99738755 | J132: 0.01626296248 | K132: 1.622196778 | L132: 1.622196778 | M132: 1.622196778 | P132: 72.74658472 | Q132: 7.845416027 | R132: 7.845376212 | S132: 7.913390532 | T132: 1.622196778 | U132: 1.622196778 | V132: 1.622196778 | W132: 1.622196778 | Z132: 44.83469105 | AC132: 0.039375 | AD132: 0 | AE132: 0 | AF132: 27.91189367
A133: 106 | B133: 3.613636364 | C133: 0.795 | D133: 14.31508875 | E133: 11.90585118 | F133: 14.31948867 | G133: 14.33817168 | H133: 12.11872254 | I133: 12.03664776 | J133: 0.01626043799 | K133: 1.636614857 | L133: 1.636614857 | M133: 1.636614857 | P133: 72.94822696 | Q133: 7.893688023 | R133: 7.893648133 | S133: 7.961786307 | T133: 1.636614857 | U133: 1.636614857 | V133: 1.636614857 | W133: 1.636614857 | Z133: 44.99493451 | AC133: 0.03975 | AD133: 0 | AE133: 0 | AF133: 27.95329245
A134: 107 | B134: 3.647727273 | C134: 0.8025 | D134: 14.31285469 | E134: 11.94540997 | F134: 14.31726574 | G134: 14.33604664 | H134: 12.15661731 | I134: 12.07520586 | J134: 0.01625790711 | K134: 1.651014031 | L134: 1.651014031 | M134: 1.651014031 | P134: 73.14854386 | Q134: 7.941583351 | R134: 7.94154339 | S134: 8.009799505 | T134: 1.651014031 | U134: 1.651014031 | V134: 1.651014031 | W134: 1.651014031 | Z134: 45.1547335 | AC134: 0.040125 | AD134: 0 | AE134: 0 | AF134: 27.99381036
A135: 108 | B135: 3.681818182 | C135: 0.81 | D135: 14.310615 | E135: 11.98428253 | F135: 14.31503719 | G135: 14.33391157 | H135: 12.19381973 | I135: 12.11307364 | J135: 0.01625536984 | K135: 1.665394314 | L135: 1.665394314 | M135: 1.665394314 | P135: 73.34755475 | Q135: 7.989104779 | R135: 7.98906475 | S135: 8.057432974 | T135: 1.665394314 | U135: 1.665394314 | V135: 1.665394314 | W135: 1.665394314 | Z135: 45.31409023 | AC135: 0.0405 | AD135: 0 | AE135: 0 | AF135: 28.03346451
A136: 109 | B136: 3.715909091 | C136: 0.8175 | D136: 14.30836969 | E136: 12.02248005 | F136: 14.31280301 | G136: 14.33176686 | H136: 12.23034164 | I136: 12.15026267 | J136: 0.01625282619 | K136: 1.679755722 | L136: 1.679755722 | M136: 1.679755722 | P136: 73.54527861 | Q136: 8.036255053 | R136: 8.03621496 | S136: 8.104689542 | T136: 1.679755722 | U136: 1.679755722 | V136: 1.679755722 | W136: 1.679755722 | Z136: 45.47300689 | AC136: 0.040875 | AD136: 0 | AE136: 0 | AF136: 28.07227172
A137: 110 | B137: 3.75 | C137: 0.825 | D137: 14.30611875 | E137: 12.06001351 | F137: 14.31056321 | G137: 14.3296129 | H137: 12.26619469 | I137: 12.18678436 | J137: 0.01625027615 | K137: 1.694098269 | L137: 1.694098269 | M137: 1.694098269 | P137: 73.7417341 | Q137: 8.0830369 | R137: 8.082996746 | S137: 8.151572014 | T137: 1.694098269 | U137: 1.694098269 | V137: 1.694098269 | W137: 1.694098269 | Z137: 45.63148564 | AC137: 0.04125 | AD137: 0 | AE137: 0 | AF137: 28.11024846
A138: 111 | B138: 3.784090909 | C138: 0.8325 | D138: 14.30386219 | E138: 12.09689372 | F138: 14.30831778 | G138: 14.32745 | H138: 12.30139031 | I138: 12.22264989 | J138: 0.01624771972 | K138: 1.70842197 | L138: 1.70842197 | M138: 1.70842197 | P138: 73.93693953 | Q138: 8.129453026 | R138: 8.129412815 | S138: 8.198083175 | T138: 1.70842197 | U138: 1.70842197 | V138: 1.70842197 | W138: 1.70842197 | Z138: 45.78952863 | AC138: 0.041625 | AD138: 0 | AE138: 0 | AF138: 28.1474109
A139: 112 | B139: 3.818181818 | C139: 0.84 | D139: 14.3016 | E139: 12.13313133 | F139: 14.30606672 | G139: 14.32527849 | H139: 12.33593975 | I139: 12.25787029 | J139: 0.0162451569 | K139: 1.722726841 | L139: 1.722726841 | M139: 1.722726841 | P139: 74.13091289 | Q139: 8.175506117 | R139: 8.175465851 | S139: 8.244225788 | T139: 1.722726841 | U139: 1.722726841 | V139: 1.722726841 | W139: 1.722726841 | Z139: 45.947138 | AC139: 0.042 | AD139: 0 | AE139: 0 | AF139: 28.18377489
A140: 113 | B140: 3.852272727 | C140: 0.8475 | D140: 14.29933219 | E140: 12.16873678 | F140: 14.30381005 | G140: 14.32309862 | H140: 12.36985406 | I140: 12.29245636 | J140: 0.01624258769 | K140: 1.737012897 | L140: 1.737012897 | M140: 1.737012897 | P140: 74.32367186 | Q140: 8.221198838 | R140: 8.221158521 | S140: 8.290002596 | T140: 1.737012897 | U140: 1.737012897 | V140: 1.737012897 | W140: 1.737012897 | Z140: 46.10431587 | AC140: 0.042375 | AD140: 0 | AE140: 0 | AF140: 28.21935599
A141: 114 | B141: 3.886363636 | C141: 0.855 | D141: 14.29705875 | E141: 12.20372037 | F141: 14.30154774 | G141: 14.32091066 | H141: 12.40314412 | I141: 12.32641876 | J141: 0.01624001209 | K141: 1.751280152 | L141: 1.751280152 | M141: 1.751280152 | P141: 74.51523383 | Q141: 8.266533837 | R141: 8.266493471 | S141: 8.335416321 | T141: 1.751280152 | U141: 1.751280152 | V141: 1.751280152 | W141: 1.751280152 | Z141: 46.26106436 | AC141: 0.04275 | AD141: 0 | AE141: 0 | AF141: 28.25416947
A142: 115 | B142: 3.920454545 | C142: 0.8625 | D142: 14.29477969 | E142: 12.23809221 | F142: 14.29927981 | G142: 14.31871483 | H142: 12.43582058 | I142: 12.35976794 | J142: 0.01623743011 | K142: 1.765528621 | L142: 1.765528621 | M142: 1.765528621 | P142: 74.70561586 | Q142: 8.311513737 | R142: 8.311473327 | S142: 8.380469665 | T142: 1.765528621 | U142: 1.765528621 | V142: 1.765528621 | W142: 1.765528621 | Z142: 46.41738555 | AC142: 0.043125 | AD142: 0 | AE142: 0 | AF142: 28.2882303
A143: 116 | B143: 3.954545455 | C143: 0.87 | D143: 14.292495 | E143: 12.27186225 | F143: 14.29700626 | G143: 14.31651134 | H143: 12.46789394 | I143: 12.39251418 | J143: 0.01623484174 | K143: 1.77975832 | L143: 1.77975832 | M143: 1.77975832 | P143: 74.89483472 | Q143: 8.356141148 | R143: 8.356100695 | S143: 8.425165308 | T143: 1.77975832 | U143: 1.77975832 | V143: 1.77975832 | W143: 1.77975832 | Z143: 46.57328153 | AC143: 0.0435 | AD143: 0 | AE143: 0 | AF143: 28.32155319
A144: 117 | B144: 3.988636364 | C144: 0.8775 | D144: 14.29020469 | E144: 12.3050403 | F144: 14.29472708 | G144: 14.31430037 | H144: 12.4993745 | I144: 12.42466759 | J144: 0.01623224698 | K144: 1.793969263 | L144: 1.793969263 | M144: 1.793969263 | P144: 75.08290689 | Q144: 8.400418655 | R144: 8.400378163 | S144: 8.469505911 | T144: 1.793969263 | U144: 1.793969263 | V144: 1.793969263 | W144: 1.793969263 | Z144: 46.72875435 | AC144: 0.043875 | AD144: 0 | AE144: 0 | AF144: 28.35415254
A145: 118 | B145: 4.022727273 | C145: 0.885 | D145: 14.28790875 | E145: 12.33763596 | F145: 14.29244228 | G145: 14.3120821 | H145: 12.53027241 | I145: 12.45623811 | J145: 0.01622964583 | K145: 1.808161465 | L145: 1.808161465 | M145: 1.808161465 | P145: 75.26984859 | Q145: 8.444348826 | R145: 8.444308298 | S145: 8.513494115 | T145: 1.808161465 | U145: 1.808161465 | V145: 1.808161465 | W145: 1.808161465 | Z145: 46.88380607 | AC145: 0.04425 | AD145: 0 | AE145: 0 | AF145: 28.38604252
A146: 119 | B146: 4.056818182 | C146: 0.8925 | D146: 14.28560719 | E146: 12.36965872 | F146: 14.29015185 | G146: 14.30985668 | H146: 12.56059761 | I146: 12.48723551 | J146: 0.01622703829 | K146: 1.822334941 | L146: 1.822334941 | M146: 1.822334941 | P146: 75.45567573 | Q146: 8.48793421 | R146: 8.48789365 | S146: 8.55713254 | T146: 1.822334941 | U146: 1.822334941 | V146: 1.822334941 | W146: 1.822334941 | Z146: 47.03843872 | AC146: 0.044625 | AD146: 0 | AE146: 0 | AF146: 28.41723701
A147: 120 | B147: 4.090909091 | C147: 0.9 | D147: 14.2833 | E147: 12.40111788 | F147: 14.28785579 | G147: 14.30762425 | H147: 12.59035988 | I147: 12.51766939 | J147: 0.01622442436 | K147: 1.836489707 | L147: 1.836489707 | M147: 1.836489707 | P147: 75.64040397 | Q147: 8.531177337 | R147: 8.531136747 | S147: 8.600423788 | T147: 1.836489707 | U147: 1.836489707 | V147: 1.836489707 | W147: 1.836489707 | Z147: 47.19265432 | AC147: 0.045 | AD147: 0 | AE147: 0 | AF147: 28.44774965
A148: 121 | B148: 4.125 | C148: 0.9075 | D148: 14.28098719 | E148: 12.43202261 | F148: 14.28555412 | G148: 14.30538493 | H148: 12.61956885 | I148: 12.54754919 | J148: 0.01622180405 | K148: 1.850625776 | L148: 1.850625776 | M148: 1.850625776 | P148: 75.82404868 | Q148: 8.574080718 | R148: 8.5740401 | S148: 8.643370439 | T148: 1.850625776 | U148: 1.850625776 | V148: 1.850625776 | W148: 1.850625776 | Z148: 47.34645488 | AC148: 0.045375 | AD148: 0 | AE148: 0 | AF148: 28.4775938
A149: 122 | B149: 4.159090909 | C149: 0.915 | D149: 14.27866875 | E149: 12.46238193 | F149: 14.28324681 | G149: 14.30313885 | H149: 12.64823396 | I149: 12.57688419 | J149: 0.01621917734 | K149: 1.864743164 | L149: 1.864743164 | M149: 1.864743164 | P149: 76.00662498 | Q149: 8.616646845 | R149: 8.616606202 | S149: 8.685975054 | T149: 1.864743164 | U149: 1.864743164 | V149: 1.864743164 | W149: 1.864743164 | Z149: 47.49984238 | AC149: 0.04575 | AD149: 0 | AE149: 0 | AF149: 28.5067826
A150: 123 | B150: 4.193181818 | C150: 0.9225 | D150: 14.27634469 | E150: 12.49220468 | F150: 14.28093388 | G150: 14.30088611 | H150: 12.6763645 | I150: 12.60568352 | J150: 0.01621654425 | K150: 1.878841885 | L150: 1.878841885 | M150: 1.878841885 | P150: 76.18814774 | Q150: 8.658878191 | R150: 8.658837526 | S150: 8.728240177 | T150: 1.878841885 | U150: 1.878841885 | V150: 1.878841885 | W150: 1.878841885 | Z150: 47.65281881 | AC150: 0.046125 | AD150: 0 | AE150: 0 | AF150: 28.53532893
A151: 124 | B151: 4.227272727 | C151: 0.93 | D151: 14.274015 | E151: 12.5214996 | F151: 14.27861533 | G151: 14.29862681 | H151: 12.70396959 | I151: 12.63395615 | J151: 0.01621390477 | K151: 1.892921955 | L151: 1.892921955 | M151: 1.892921955 | P151: 76.36863156 | Q151: 8.700777211 | R151: 8.700736528 | S151: 8.770168331 | T151: 1.892921955 | U151: 1.892921955 | V151: 1.892921955 | W151: 1.892921955 | Z151: 47.80538613 | AC151: 0.0465 | AD151: 0 | AE151: 0 | AF151: 28.56324543
A152: 125 | B152: 4.261363636 | C152: 0.9375 | D152: 14.27167969 | E152: 12.55027525 | F152: 14.27629115 | G152: 14.29636102 | H152: 12.73105821 | I152: 12.6617109 | J152: 0.0162112589 | K152: 1.906983388 | L152: 1.906983388 | M152: 1.906983388 | P152: 76.54809081 | Q152: 8.742346343 | R152: 8.742305643 | S152: 8.811762019 | T152: 1.906983388 | U152: 1.906983388 | V152: 1.906983388 | W152: 1.906983388 | Z152: 47.95754629 | AC152: 0.046875 | AD152: 0 | AE152: 0 | AF152: 28.59054453
A153: 126 | B153: 4.295454545 | C153: 0.945 | D153: 14.26933875 | E153: 12.57854008 | F153: 14.27396135 | G153: 14.29408883 | H153: 12.75763916 | I153: 12.68895643 | J153: 0.01620860665 | K153: 1.921026199 | L153: 1.921026199 | M153: 1.921026199 | P153: 76.72653961 | Q153: 8.783588004 | R153: 8.78354729 | S153: 8.853023727 | T153: 1.921026199 | U153: 1.921026199 | V153: 1.921026199 | W153: 1.921026199 | Z153: 48.10930122 | AC153: 0.04725 | AD153: 0 | AE153: 0 | AF153: 28.6172384
A154: 127 | B154: 4.329545455 | C154: 0.9525 | D154: 14.26699219 | E154: 12.60630236 | F154: 14.27162592 | G154: 14.29181032 | H154: 12.78372112 | I154: 12.71570127 | J154: 0.016205948 | K154: 1.935050402 | L154: 1.935050402 | M154: 1.935050402 | P154: 76.90399184 | Q154: 8.824504596 | R154: 8.824463871 | S154: 8.89395592 | T154: 1.935050402 | U154: 1.935050402 | V154: 1.935050402 | W154: 1.935050402 | Z154: 48.26065285 | AC154: 0.047625 | AD154: 0 | AE154: 0 | AF154: 28.64333899
A155: 128 | B155: =($AD$11/2000)*(A155) -> 4.363636364 | C155: =$AD$13*B155*10^-3/($AD$4*10^-6) -> 0.96 | D155: 14.26464 | E155: 12.63357028 | F155: 14.26928486 | G155: 14.28952553 | H155: 12.80931258 | I155: 12.7419538 | J155: 0.01620328297 | K155: 1.949056013 | L155: 1.949056013 | M155: 1.949056013 | P155: 77.08046114 | Q155: 8.8650985 | R155: 8.865057766 | S155: 8.934561048 | T155: 1.949056013 | U155: 1.949056013 | V155: 1.949056013 | W155: 1.949056013 | Z155: 48.41160308 | AC155: =IF(C155>=$AD$6,C155,0)/$AD$5 -> 0.048 | AD155: =IF(C155>=$AD$8,$AD$7,0) -> 0 | AE155: =IF(C155>$AD$10,($AD$9/C155),0) -> 0 | AF155: =(P155-Z155)*IF((Vcc_max-C155)>$F$4,1,0) -> 28.66885806
A156: 129 | B156: 4.397727273 | C156: 0.9675 | D156: =IF(OR(P155>=160,AF155>=60,D155=0),0, (Vcc_max-C156)*($AD$13+IF(C156>=$AD$8,$AD$7,0)+(IF(C156>=$AD$6,C156,0)/$AD$5)+IF(C156>$AD$10,($AD$9/C156),0))) -> 14.26228219 | E156: =(D155+((((EXP(-(B156-B155)*10^-3/$F$14)))*(E155-D155)))) -> 12.66035184 | F156: =(D155+((((EXP(-(B156-B155)*10^-3/$F$15)))*(F155-D155)))) -> 14.26693819 | G156: =(D155+((((EXP(-(B156-B155)*10^-3/$F$16)))*(G155-D155)))) -> 14.28723455 | H156: =(D155+((((EXP(-(B156-B155)*10^-3/$F$17)))*(H155-D155)))) -> 12.83442192 | I156: =(D155+((((EXP(-(B156-B155)*10^-3/$F$18)))*(I155-D155)))) -> 12.76772224 | J156: =(D155+((((EXP(-(B156-B155)*10^-3/$F$19)))*(JW155-D155)))) -> 0.01620061155 | K156: =(D155+((((EXP(-(B156-B155)*10^-3/$F$20)))*(K155-D155)))) -> 1.963043047 | L156: =(D155+((((EXP(-(B156-B155)*10^-3/$F$21)))*(L155-D155)))) -> 1.963043047 | M156: =(D155+((((EXP(-(B156-B155)*10^-3/$F$22)))*(M155-D155)))) -> 1.963043047 | P156: 77.25596092 | Q156: =(D155+((((EXP(-(B156-B155)*10^-3/$B$14)))*(Q155-D155)))) -> 8.905372083 | R156: =(D155+((((EXP(-(B156-B155)*10^-3/$B$15)))*(R155-D155)))) -> 8.905331343 | S156: =(D155+((((EXP(-(B156-B155)*10^-3/$B$16)))*(S155-D155)))) -> 8.974841538 | T156: =(D155+((((EXP(-(B156-B155)*10^-3/$B$17)))*(T155-D155)))) -> 1.963043047 | U156: =(D155+((((EXP(-(B156-B155)*10^-3/$B$18)))*(U155-D155)))) -> 1.963043047 | V156: 1.963043047 | W156: 1.963043047 | Z156: 48.56215382 | AC156: 0.048375 | AD156: 0 | AE156: 0 | AF156: 28.6938071
A157: 130 | B157: 4.431818182 | C157: 0.975 | D157: 14.25991875 | E157: 12.68665494 | F157: 14.26458588 | G157: 14.28493741 | H157: 12.85905736 | I157: 12.79301471 | J157: 0.01619793373 | K157: 1.977011517 | L157: 1.977011517 | M157: 1.977011517 | P157: =$C$6+(E157*$G$14)+(F157*$G$15)+(G157*$G$16)+(H157*$G$17)+(I157*$G$18)+(J157*$G$19)+(K157*$G$20)+(L157*$G$21)+(M157*$G$22) -> 77.43050438 | Q157: 8.94532769 | R157: 8.945286946 | S157: 9.014799802 | T157: 1.977011517 | U157: 1.977011517 | V157: =(D156+((((EXP(-(B157-B156)*10^-3/$B$19)))*(V156-D156)))) -> 1.977011517 | W157: =(D156+((((EXP(-(B157-B156)*10^-3/$B$20)))*(W156-D156)))) -> 1.977011517 | Z157: =$C$6+(Q157*$C$14)+(R157*$C$15)+(S157*$C$16)+(T157*$C$17)+(U157*$C$18)+(V157*$C$19)+(W157*$C$20) -> 48.71230694 | AC157: 0.04875 | AD157: 0 | AE157: 0 | AF157: 28.71819744
A158: 131 | B158: 4.465909091 | C158: 0.9825 | D158: 14.25754969 | E158: 12.71248735 | F158: 14.26222795 | G158: 14.28263417 | H158: 12.88322698 | I158: 12.81783916 | J158: 0.01619524954 | K158: 1.990961438 | L158: 1.990961438 | M158: 1.990961438 | P158: 77.60410448 | Q158: 8.984967652 | R158: 8.984926907 | S158: 9.054438232 | T158: 1.990961438 | U158: 1.990961438 | V158: 1.990961438 | W158: 1.990961438 | Z158: 48.86206431 | AC158: 0.049125 | AD158: 0 | AE158: 0 | AF158: 28.74204017
A159: 132 | B159: 4.5 | C159: 0.99 | D159: 14.255175 | E159: 12.7378567 | F159: 14.2598644 | G159: 14.28032487 | H159: 12.90693872 | I159: 12.8422034 | J159: 0.01619255895 | K159: 2.004892826 | L159: 2.004892826 | M159: 2.004892826 | P159: 77.77677398 | Q159: 9.024294281 | R159: 9.024253538 | S159: 9.093759203 | T159: 2.004892826 | U159: 2.004892826 | V159: 2.004892826 | W159: 2.004892826 | Z159: 49.01142779 | AC159: 0.0495 | AD159: 0 | AE159: 0 | AF159: 28.76534619
A160: 133 | B160: 4.534090909 | C160: 0.9975 | D160: 14.25279469 | E160: 12.7627705 | F160: 14.25749522 | G160: 14.27800955 | H160: 12.93020037 | I160: 12.86611515 | J160: 0.01618986197 | K160: 2.018805695 | L160: 2.018805695 | M160: 2.018805695 | P160: 77.9485254 | Q160: 9.063309873 | R160: 9.063269133 | S160: 9.132765071 | T160: 2.018805695 | U160: 2.018805695 | V160: 2.018805695 | W160: 2.018805695 | Z160: 49.16039922 | AC160: 0.049875 | AD160: 0 | AE160: 0 | AF160: 28.78812618
A161: 134 | B161: 4.568181818 | C161: 1.005 | D161: 14.25040875 | E161: 12.78723615 | F161: 14.25512042 | G161: 14.27568824 | H161: 12.95301962 | I161: 12.88958195 | J161: 0.01618715861 | K161: 2.032700059 | L161: 2.032700059 | M161: 2.032700059 | P161: 78.11937108 | Q161: 9.102016704 | R161: 9.101975971 | S161: 9.171458176 | T161: 2.032700059 | U161: 2.032700059 | V161: 2.032700059 | W161: 2.032700059 | Z161: 49.30898044 | AC161: 0.05025 | AD161: 0 | AE161: 0 | AF161: 28.81039064
A162: 135 | B162: 4.602272727 | C162: 1.0125 | D162: 14.24801719 | E162: 12.8112609 | F162: 14.25273999 | G162: 14.27336099 | H162: 12.97540399 | I162: 12.91261125 | J162: 0.01618444886 | K162: 2.046575933 | L162: 2.046575933 | M162: 2.046575933 | P162: 78.28932312 | Q162: 9.140417037 | R162: 9.140376312 | S162: 9.209840838 | T162: 2.046575933 | U162: 2.046575933 | V162: 2.046575933 | W162: 2.046575933 | Z162: 49.45717325 | AC162: 0.050625 | AD162: 0 | AE162: 0 | AF162: 28.83214988
A163: 136 | B163: 4.636363636 | C163: 1.02 | D163: 14.24562 | E163: 12.83485191 | F163: 14.25035393 | G163: 14.27102781 | H163: 12.99736089 | I163: 12.93521035 | J163: 0.01618173271 | K163: 2.060433332 | L163: 2.060433332 | M163: 2.060433332 | P163: 78.45839346 | Q163: 9.178513115 | R163: 9.178472401 | S163: 9.24791536 | T163: 2.060433332 | U163: 2.060433332 | V163: 2.060433332 | W163: 2.060433332 | Z163: 49.60497946 | AC163: 0.051 | AD163: 0 | AE163: 0 | AF163: 28.853414
A164: 137 | B164: 4.670454545 | C164: 1.0275 | D164: 14.24321719 | E164: 12.8580162 | F164: 14.24796226 | G164: 14.26868875 | H164: 13.0188976 | I164: 12.95738644 | J164: 0.01617901019 | K164: 2.074272271 | L164: 2.074272271 | M164: 2.074272271 | P164: 78.62659379 | Q164: 9.216307166 | R164: 9.216266464 | S164: 9.28568403 | T164: 2.074272271 | U164: 2.074272271 | V164: 2.074272271 | W164: 2.074272271 | Z164: 49.75240086 | AC164: 0.051375 | AD164: 0 | AE164: 0 | AF164: 28.87419293
A165: 138 | B165: 4.704545455 | C165: 1.035 | D165: 14.24080875 | E165: 12.88076068 | F165: 14.24556495 | G165: 14.26634381 | H165: 13.04002127 | I165: 12.97914658 | J165: 0.01617628127 | K165: 2.088092763 | L165: 2.088092763 | M165: 2.088092763 | P165: 78.79393565 | Q165: 9.253801401 | R165: 9.253760714 | S165: 9.323149116 | T165: 2.088092763 | U165: 2.088092763 | V165: 2.088092763 | W165: 2.088092763 | Z165: 49.89943924 | AC165: 0.05175 | AD165: 0 | AE165: 0 | AF165: 28.89449641
A166: 139 | B166: 4.738636364 | C166: 1.0425 | D166: 14.23839469 | E166: 12.90309217 | F166: 14.24316202 | G166: 14.26399303 | H166: 13.06073893 | I166: 13.00049771 | J166: 0.01617354596 | K166: 2.101894824 | L166: 2.101894824 | M166: 2.101894824 | P166: 78.96043036 | Q166: 9.290998013 | R166: 9.290957343 | S166: 9.36031287 | T166: 2.101894824 | U166: 2.101894824 | V166: 2.101894824 | W166: 2.101894824 | Z166: 50.04609636 | AC166: 0.052125 | AD166: 0 | AE166: 0 | AF166: 28.914334
A167: 140 | B167: 4.772727273 | C167: 1.05 | D167: 14.235975 | E167: 12.92501734 | F167: 14.24075347 | G167: 14.26163642 | H167: 13.0810575 | I167: 13.02144666 | J167: 0.01617080427 | K167: 2.115678468 | L167: 2.115678468 | M167: 2.115678468 | P167: 79.12608906 | Q167: 9.327899181 | R167: 9.32785853 | S167: 9.397177526 | T167: 2.115678468 | U167: 2.115678468 | V167: 2.115678468 | W167: 2.115678468 | Z167: 50.19237397 | AC167: 0.0525 | AD167: 0 | AE167: 0 | AF167: 28.93371509
A168: 141 | B168: 4.806818182 | C168: 1.0575 | D168: 14.23354969 | E168: 12.94654278 | F168: 14.23833929 | G168: 14.259274 | H168: 13.10098375 | I168: 13.04200015 | J168: 0.01616805618 | K168: 2.12944371 | L168: 2.12944371 | M168: 2.12944371 | P168: 79.2909227 | Q168: 9.364507066 | R168: 9.364466437 | S168: 9.433745302 | T168: 2.12944371 | U168: 2.12944371 | V168: 2.12944371 | W168: 2.12944371 | Z168: 50.33827381 | AC168: 0.052875 | AD168: 0 | AE168: 0 | AF168: 28.95264889
A169: 142 | B169: 4.840909091 | C169: 1.065 | D169: 14.23111875 | E169: 12.96767496 | F169: 14.23591949 | G169: 14.2569058 | H169: 13.12052436 | I169: 13.06216476 | J169: 0.01616530171 | K169: 2.143190563 | L169: 2.143190563 | M169: 2.143190563 | P169: 79.45494205 | Q169: 9.400823814 | R169: 9.400783209 | S169: 9.470018399 | T169: 2.143190563 | U169: 2.143190563 | V169: 2.143190563 | W169: 2.143190563 | Z169: 50.48379762 | AC169: 0.05325 | AD169: 0 | AE169: 0 | AF169: 28.97114443
A170: 143 | B170: 4.875 | C170: 1.0725 | D170: 14.22868219 | E170: 12.98842023 | F170: 14.23349406 | G170: 14.25453182 | H170: 13.13968588 | I170: 13.08194699 | J170: 0.01616254085 | K170: 2.156919044 | L170: 2.156919044 | M170: 2.156919044 | P170: 79.6181577 | Q170: 9.436851555 | R170: 9.436810975 | S170: 9.505999002 | T170: 2.156919044 | U170: 2.156919044 | V170: 2.156919044 | W170: 2.156919044 | Z170: 50.6289471 | AC170: 0.053625 | AD170: 0 | AE170: 0 | AF170: 28.9892106
A171: 144 | B171: 4.909090909 | C171: 1.08 | D171: 14.22624 | E171: 13.00878488 | F171: 14.231063 | G171: 14.25215208 | H171: 13.15847477 | I171: 13.10135322 | J171: 0.0161597736 | K171: 2.170629165 | L171: 2.170629165 | M171: 2.170629165 | P171: 79.78058007 | Q171: 9.472592402 | R171: 9.47255185 | S171: 9.541689279 | T171: 2.170629165 | U171: 2.170629165 | V171: 2.170629165 | W171: 2.170629165 | Z171: 50.77372398 | AC171: 0.054 | AD171: 0 | AE171: 0 | AF171: 29.00685609
A172: 145 | B172: 4.943181818 | C172: 1.0875 | D172: 14.22379219 | E172: 13.02877504 | F172: 14.22862633 | G172: 14.24976659 | H172: 13.17689735 | I172: 13.1203897 | J172: 0.01615699997 | K172: 2.184320942 | L172: 2.184320942 | M172: 2.184320942 | P172: 79.9422194 | Q172: 9.508048452 | R172: 9.50800793 | S172: 9.577091381 | T172: 2.184320942 | U172: 2.184320942 | V172: 2.184320942 | W172: 2.184320942 | Z172: 50.91812993 | AC172: 0.054375 | AD172: 0 | AE172: 0 | AF172: 29.02408946
A173: 146 | B173: 4.977272727 | C173: 1.095 | D173: 14.22133875 | E173: 13.04839678 | F173: 14.22618402 | G173: 14.24737536 | H173: 13.19495984 | I173: 13.1390626 | J173: 0.01615421994 | K173: 2.197994389 | L173: 2.197994389 | M173: 2.197994389 | P173: 80.10308576 | Q173: 9.543221789 | R173: 9.543181299 | S173: 9.612207444 | T173: 2.197994389 | U173: 2.197994389 | V173: 2.197994389 | W173: 2.197994389 | Z173: 51.06216665 | AC173: 0.05475 | AD173: 0 | AE173: 0 | AF173: 29.0409191
A174: 147 | B174: 5.011363636 | C174: 1.1025 | D174: 14.21887969 | E174: 13.06765605 | F174: 14.22373609 | G174: 14.2449784 | H174: 13.21266836 | I174: 13.15737798 | J174: 0.01615143353 | K174: 2.21164952 | L174: 2.21164952 | M174: 2.21164952 | P174: 80.26318904 | Q174: 9.57811448 | R174: 9.578074022 | S174: 9.647039586 | T174: 2.21164952 | U174: 2.21164952 | V174: 2.21164952 | W174: 2.21164952 | Z174: 51.2058358 | AC174: 0.055125 | AD174: 0 | AE174: 0 | AF174: 29.05735324
A175: 148 | B175: 5.045454545 | C175: 1.11 | D175: 14.216415 | E175: 13.08655872 | F175: 14.22128254 | G175: 14.24257573 | H175: 13.23002892 | I175: 13.17534179 | J175: 0.01614864072 | K175: 2.22528635 | L175: 2.22528635 | M175: 2.22528635 | P175: 80.422539 | Q175: 9.612728574 | R175: 9.612688152 | S175: 9.681589911 | T175: 2.22528635 | U175: 2.22528635 | V175: 2.22528635 | W175: 2.22528635 | Z175: 51.34913904 | AC175: 0.0555 | AD175: 0 | AE175: 0 | AF175: 29.07339996
A176: 149 | B176: 5.079545455 | C176: 1.1175 | D176: 14.21394469 | E176: 13.10511054 | F176: 14.21882336 | G176: 14.24016735 | H176: 13.24704743 | I176: 13.19295989 | J176: 0.01614584153 | K176: 2.238904893 | L176: 2.238904893 | M176: 2.238904893 | P176: 80.5811452 | Q176: 9.647066109 | R176: 9.647025724 | S176: 9.715860506 | T176: 2.238904893 | U176: 2.238904893 | V176: 2.238904893 | W176: 2.238904893 | Z176: 51.49207801 | AC176: 0.055875 | AD176: 0 | AE176: 0 | AF176: 29.08906719
A177: 150 | B177: 5.113636364 | C177: 1.125 | D177: 14.21146875 | E177: 13.12331718 | F177: 14.21635856 | G177: 14.23775326 | H177: 13.2637297 | I177: 13.21023804 | J177: 0.01614303596 | K177: 2.252505164 | L177: 2.252505164 | M177: 2.252505164 | P177: 80.73901707 | Q177: 9.681129105 | R177: 9.681088759 | S177: 9.749853443 | T177: 2.252505164 | U177: 2.252505164 | V177: 2.252505164 | W177: 2.252505164 | Z177: 51.63465436 | AC177: 0.05625 | AD177: 0 | AE177: 0 | AF177: 29.10436271
A178: 151 | B178: 5.147727273 | C178: 1.1325 | D178: 14.20898719 | E178: 13.14118423 | F178: 14.21388813 | G178: 14.23533349 | H178: 13.28008142 | I178: 13.22718188 | J178: 0.01614022399 | K178: 2.266087177 | L178: 2.266087177 | M178: 2.266087177 | P178: 80.89616386 | Q178: 9.714919568 | R178: 9.714879263 | S178: 9.783570776 | T178: 2.266087177 | U178: 2.266087177 | V178: 2.266087177 | W178: 2.266087177 | Z178: 51.7768697 | AC178: 0.056625 | AD178: 0 | AE178: 0 | AF178: 29.11929416
A179: 152 | B179: 5.181818182 | C179: 1.14 | D179: 14.2065 | E179: 13.15871716 | F179: 14.21141207 | G179: 14.23290802 | H179: 13.2961082 | I179: 13.24379699 | J179: 0.01613740563 | K179: 2.279650946 | L179: 2.279650946 | M179: 2.279650946 | P179: 81.05259468 | Q179: 9.748439488 | R179: 9.748399226 | S179: 9.817014548 | T179: 2.279650946 | U179: 2.279650946 | V179: 2.279650946 | W179: 2.279650946 | Z179: 51.91872565 | AC179: 0.057 | AD179: 0 | AE179: 0 | AF179: 29.13386903
A180: 153 | B180: 5.215909091 | C180: 1.1475 | D180: 14.20400719 | E180: 13.17592136 | F180: 14.2089304 | G180: 14.23047687 | H180: 13.31181555 | I180: 13.26008883 | J180: 0.01613458089 | K180: 2.293196486 | L180: 2.293196486 | M180: 2.293196486 | P180: 81.20831849 | Q180: 9.781690843 | R180: 9.781650625 | S180: 9.850186782 | T180: 2.293196486 | U180: 2.293196486 | V180: 2.293196486 | W180: 2.293196486 | Z180: 52.06022381 | AC180: 0.057375 | AD180: 0 | AE180: 0 | AF180: 29.14809468
A181: 154 | B181: 5.25 | C181: 1.155 | D181: 14.20150875 | E181: 13.19280215 | F181: 14.20644309 | G181: 14.22804005 | H181: 13.32720888 | I181: 13.27606278 | J181: 0.01613174976 | K181: 2.306723811 | L181: 2.306723811 | M181: 2.306723811 | P181: 81.3633441 | Q181: 9.814675592 | R181: 9.81463542 | S181: 9.883089487 | T181: 2.306723811 | U181: 2.306723811 | V181: 2.306723811 | W181: 2.306723811 | Z181: 52.20136577 | AC181: 0.05775 | AD181: 0 | AE181: 0 | AF181: 29.16197833
A182: 155 | B182: 5.284090909 | C182: 1.1625 | D182: 14.19900469 | E182: 13.20936474 | F182: 14.20395016 | G182: 14.22559755 | H182: 13.34229353 | I182: 13.29172412 | J182: 0.01612891223 | K182: 2.320232935 | L182: 2.320232935 | M182: 2.320232935 | P182: 81.51768017 | Q182: 9.847395682 | R182: 9.847355559 | S182: 9.91572466 | T182: 2.320232935 | U182: 2.320232935 | V182: 2.320232935 | W182: 2.320232935 | Z182: 52.34215311 | AC182: 0.058125 | AD182: 0 | AE182: 0 | AF182: 29.17552707
A183: 156 | B183: 5.318181818 | C183: 1.17 | D183: 14.196495 | E183: 13.22561426 | F183: 14.20145161 | G183: 14.22314939 | H183: 13.3570747 | I183: 13.30707805 | J183: 0.01612606833 | K183: 2.333723872 | L183: 2.333723872 | M183: 2.333723872 | P183: 81.67133522 | Q183: 9.879853046 | R183: 9.879812972 | S183: 9.948094277 | T183: 2.333723872 | U183: 2.333723872 | V183: 2.333723872 | W183: 2.333723872 | Z183: 52.48258739 | AC183: 0.0585 | AD183: 0 | AE183: 0 | AF183: 29.18874783
A184: 157 | B184: 5.352272727 | C184: 1.1775 | D184: 14.19397969 | E184: 13.24155576 | F184: 14.19894743 | G184: 14.22069556 | H184: 13.37155756 | I184: 13.32212967 | J184: 0.01612321803 | K184: 2.347196638 | L184: 2.347196638 | M184: 2.347196638 | P184: 81.82431762 | Q184: 9.912049601 | R184: 9.912009578 | S184: 9.980200305 | T184: 2.347196638 | U184: 2.347196638 | V184: 2.347196638 | W184: 2.347196638 | Z184: 52.62267017 | AC184: 0.058875 | AD184: 0 | AE184: 0 | AF184: 29.20164745
A185: 158 | B185: 5.386363636 | C185: 1.185 | D185: 14.19145875 | E185: 13.25719421 | F185: 14.19643763 | G185: 14.21823607 | H185: 13.38574713 | I185: 13.336884 | J185: 0.01612036134 | K185: 2.360651245 | L185: 2.360651245 | M185: 2.360651245 | P185: 81.97663561 | Q185: 9.943987251 | R185: 9.94394728 | S185: 10.01204469 | T185: 2.360651245 | U185: 2.360651245 | V185: 2.360651245 | W185: 2.360651245 | Z185: 52.762403 | AC185: 0.05925 | AD185: 0 | AE185: 0 | AF185: 29.21423261
A186: 159 | B186: 5.420454545 | C186: 1.1925 | D186: 14.18893219 | E186: 13.27253449 | F186: 14.1939222 | G186: 14.21577092 | H186: 13.39964839 | I186: 13.35134599 | J186: 0.01611749827 | K186: 2.374087709 | L186: 2.374087709 | M186: 2.374087709 | P186: 82.1282973 | Q186: 9.975667884 | R186: 9.975627968 | S186: 10.04362937 | T186: 2.374087709 | U186: 2.374087709 | V186: 2.374087709 | W186: 2.374087709 | Z186: 52.90178742 | AC186: 0.059625 | AD186: 0 | AE186: 0 | AF186: 29.22650988
A187: 160 | B187: 5.454545455 | C187: 1.2 | D187: 14.1864 | E187: 13.2875814 | F187: 14.19140114 | G187: 14.21330012 | H187: 13.41326622 | I187: 13.36552047 | J187: 0.0161146288 | K187: 2.387506043 | L187: 2.387506043 | M187: 2.387506043 | P187: 82.27931066 | Q187: 10.00709338 | R187: 10.00705352 | S187: 10.07495627 | T187: 2.387506043 | U187: 2.387506043 | V187: 2.387506043 | W187: 2.387506043 | Z187: 53.04082494 | AC187: 0.06 | AD187: 0 | AE187: 0 | AF187: 29.23848571
A188: 161 | B188: 5.488636364 | C188: 1.2075 | D188: 14.18386219 | E188: 13.30233967 | F188: 14.18887447 | G188: 14.21082367 | H188: 13.4266054 | I188: 13.37941223 | J188: 0.01611175295 | K188: 2.400906262 | L188: 2.400906262 | M188: 2.400906262 | P188: 82.42968351 | Q188: 10.03826559 | R188: 10.03822578 | S188: 10.10602729 | T188: 2.400906262 | U188: 2.400906262 | V188: 2.400906262 | W188: 2.400906262 | Z188: 53.17951709 | AC188: 0.060375 | AD188: 0 | AE188: 0 | AF188: 29.25016642
A189: 162 | B189: 5.522727273 | C189: 1.215 | D189: 14.18131875 | E189: 13.31681394 | F189: 14.18634216 | G189: 14.20834157 | H189: 13.43967066 | I189: 13.39302596 | J189: 0.01610887071 | K189: 2.414288379 | L189: 2.414288379 | M189: 2.414288379 | P189: 82.57942358 | Q189: 10.06918637 | R189: 10.06914662 | S189: 10.13684431 | T189: 2.414288379 | U189: 2.414288379 | V189: 2.414288379 | W189: 2.414288379 | Z189: 53.31786537 | AC189: 0.06075 | AD189: 0 | AE189: 0 | AF189: 29.26155821
A190: 163 | B190: 5.556818182 | C190: 1.2225 | D190: 14.17876969 | E190: 13.33100879 | F190: 14.18380423 | G190: 14.20585383 | H190: 13.45246661 | I190: 13.40636625 | J190: 0.01610598208 | K190: 2.42765241 | L190: 2.42765241 | M190: 2.42765241 | P190: 82.72853843 | Q190: 10.09985754 | R190: 10.09981786 | S190: 10.16740923 | T190: 2.42765241 | U190: 2.42765241 | V190: 2.42765241 | W190: 2.42765241 | Z190: 53.45587126 | AC190: 0.061125 | AD190: 0 | AE190: 0 | AF190: 29.27266717
A191: 164 | B191: 5.590909091 | C191: 1.23 | D191: 14.176215 | E191: 13.34492871 | F191: 14.18126068 | G191: 14.20336043 | H191: 13.4649978 | I191: 13.41943765 | J191: 0.01610308707 | K191: 2.440998368 | L191: 2.440998368 | M191: 2.440998368 | P191: 82.87703552 | Q191: 10.13028094 | R191: 10.13024132 | S191: 10.1977239 | T191: 2.440998368 | U191: 2.440998368 | V191: 2.440998368 | W191: 2.440998368 | Z191: 53.59353626 | AC191: 0.0615 | AD191: 0 | AE191: 0 | AF191: 29.28349927
A192: 165 | B192: 5.625 | C192: 1.2375 | D192: 14.17365469 | E192: 13.35857812 | F192: 14.1787115 | G192: 14.2008614 | H192: 13.47726871 | I192: 13.4322446 | J192: 0.01610018566 | K192: 2.454326267 | L192: 2.454326267 | M192: 2.454326267 | P192: 83.02492219 | Q192: 10.16045837 | R192: 10.16041881 | S192: 10.22779016 | T192: 2.454326267 | U192: 2.454326267 | V192: 2.454326267 | W192: 2.454326267 | Z192: 53.73086183 | AC192: 0.061875 | AD192: 0 | AE192: 0 | AF192: 29.29406036
A193: 166 | B193: 5.659090909 | C193: 1.245 | D193: 14.17108875 | E193: 13.37196138 | F193: 14.1761567 | G193: 14.19835672 | H193: 13.48928374 | I193: 13.4447915 | J193: 0.01609727787 | K193: 2.467636122 | L193: 2.467636122 | M193: 2.467636122 | P193: 83.17220564 | Q193: 10.19039161 | R193: 10.19035212 | S193: 10.25760986 | T193: 2.467636122 | U193: 2.467636122 | V193: 2.467636122 | W193: 2.467636122 | Z193: 53.86784943 | AC193: 0.06225 | AD193: 0 | AE193: 0 | AF193: 29.30435621
A194: 167 | B194: 5.693181818 | C194: 1.2525 | D194: 14.16851719 | E194: 13.38508275 | F194: 14.17359627 | G194: 14.19584641 | H194: 13.50104719 | I194: 13.45708264 | J194: 0.01609436369 | K194: 2.480927947 | L194: 2.480927947 | M194: 2.480927947 | P194: 83.31889297 | Q194: 10.22008245 | R194: 10.22004303 | S194: 10.28718482 | T194: 2.480927947 | U194: 2.480927947 | V194: 2.480927947 | W194: 2.480927947 | Z194: 54.00450053 | AC194: 0.062625 | AD194: 0 | AE194: 0 | AF194: 29.31439244
A195: 168 | B195: 5.727272727 | C195: 1.26 | D195: 14.16594 | E195: 13.39794646 | F195: 14.17103021 | G195: 14.19333045 | H195: 13.51256331 | I195: 13.46912226 | J195: 0.01609144312 | K195: 2.494201755 | L195: 2.494201755 | M195: 2.494201755 | P195: 83.46499115 | Q195: 10.24953266 | R195: 10.2494933 | S195: 10.31651684 | T195: 2.494201755 | U195: 2.494201755 | V195: 2.494201755 | W195: 2.494201755 | Z195: 54.14081656 | AC195: 0.063 | AD195: 0 | AE195: 0 | AF195: 29.32417459
A196: 169 | B196: 5.761363636 | C196: 1.2675 | D196: 14.16335719 | E196: 13.41055662 | F196: 14.16845854 | G196: 14.19080886 | H196: 13.52383628 | I196: 13.48091452 | J196: 0.01608851616 | K196: 2.50745756 | L196: 2.50745756 | M196: 2.50745756 | P196: 83.61050703 | Q196: 10.27874398 | R196: 10.27870469 | S196: 10.34560771 | T196: 2.50745756 | U196: 2.50745756 | V196: 2.50745756 | W196: 2.50745756 | Z196: 54.27679895 | AC196: 0.063375 | AD196: 0 | AE196: 0 | AF196: 29.33370808
A197: 170 | B197: 5.795454545 | C197: 1.275 | D197: 14.16076875 | E197: 13.42291733 | F197: 14.16588123 | G197: 14.18828163 | H197: 13.53487019 | I197: 13.49246351 | J197: 0.01608558281 | K197: 2.520695378 | L197: 2.520695378 | M197: 2.520695378 | P197: 83.75544738 | Q197: 10.30771816 | R197: 10.30767894 | S197: 10.37445922 | T197: 2.520695378 | U197: 2.520695378 | V197: 2.520695378 | W197: 2.520695378 | Z197: 54.41244913 | AC197: 0.06375 | AD197: 0 | AE197: 0 | AF197: 29.34299825
A198: 171 | B198: 5.829545455 | C198: 1.2825 | D198: 14.15817469 | E198: 13.43503258 | F198: 14.1632983 | G198: 14.18574877 | H198: 13.54566907 | I198: 13.50377326 | J198: 0.01608264307 | K198: 2.533915221 | L198: 2.533915221 | M198: 2.533915221 | P198: 83.89981881 | Q198: 10.33645693 | R198: 10.33641778 | S198: 10.40307313 | T198: 2.533915221 | U198: 2.533915221 | V198: 2.533915221 | W198: 2.533915221 | Z198: 54.5477685 | AC198: 0.064125 | AD198: 0 | AE198: 0 | AF198: 29.35205031
A199: 172 | B199: 5.863636364 | C199: 1.29 | D199: 14.155575 | E199: 13.4469063 | F199: 14.16070975 | G199: 14.18321028 | H199: 13.55623687 | I199: 13.5148477 | J199: 0.01607969695 | K199: 2.547117105 | L199: 2.547117105 | M199: 2.547117105 | P199: 84.04362786 | Q199: 10.36496199 | R199: 10.36492291 | S199: 10.43145119 | T199: 2.547117105 | U199: 2.547117105 | V199: 2.547117105 | W199: 2.547117105 | Z199: 54.68275848 | AC199: 0.0645 | AD199: 0 | AE199: 0 | AF199: 29.36086938
A200: 173 | B200: 5.897727273 | C200: 1.2975 | D200: 14.15296969 | E200: 13.45854238 | F200: 14.15811557 | G200: 14.18066615 | H200: 13.56657749 | I200: 13.52569074 | J200: 0.01607674444 | K200: 2.560301042 | L200: 2.560301042 | M200: 2.560301042 | P200: 84.18688094 | Q200: 10.39323505 | R200: 10.39319605 | S200: 10.45959515 | T200: 2.560301042 | U200: 2.560301042 | V200: 2.560301042 | W200: 2.560301042 | Z200: 54.81742045 | AC200: 0.064875 | AD200: 0 | AE200: 0 | AF200: 29.3694605
A201: 174 | B201: 5.931818182 | C201: 1.305 | D201: 14.15035875 | E201: 13.46994462 | F201: 14.15551577 | G201: 14.17811638 | H201: 13.57669475 | I201: 13.5363062 | J201: 0.01607378554 | K201: 2.573467047 | L201: 2.573467047 | M201: 2.573467047 | P201: 84.32958438 | Q201: 10.4212778 | R201: 10.42123887 | S201: 10.48750674 | T201: 2.573467047 | U201: 2.573467047 | V201: 2.573467047 | W201: 2.573467047 | Z201: 54.95175579 | AC201: 0.06525 | AD201: 0 | AE201: 0 | AF201: 29.37782858
A202: 175 | B202: 5.965909091 | C202: 1.3125 | D202: 14.14774219 | E202: 13.48111677 | F202: 14.15291034 | G202: 14.17556099 | H202: 13.5865924 | I202: 13.54669782 | J202: 0.01607082025 | K202: 2.586615134 | L202: 2.586615134 | M202: 2.586615134 | P202: 84.47174436 | Q202: 10.44909191 | R202: 10.44905306 | S202: 10.51518765 | T202: 2.586615134 | U202: 2.586615134 | V202: 2.586615134 | W202: 2.586615134 | Z202: 55.08576589 | AC202: 0.065625 | AD202: 0 | AE202: 0 | AF202: 29.38597848
A203: 176 | B203: 6 | C203: 1.32 | D203: 14.14512 | E203: 13.49206251 | F203: 14.15029928 | G203: 14.17299996 | H203: 13.59627414 | I203: 13.55686931 | J203: 0.01606784857 | K203: 2.599745316 | L203: 2.599745316 | M203: 2.599745316 | P203: 84.61336702 | Q203: 10.47667905 | R203: 10.47664027 | S203: 10.54263961 | T203: 2.599745316 | U203: 2.599745316 | V203: 2.599745316 | W203: 2.599745316 | Z203: 55.21945209 | AC203: 0.066 | AD203: 0 | AE203: 0 | AF203: 29.39391492
A204: 177 | B204: 6.034090909 | C204: 1.3275 | D204: 14.14249219 | E204: 13.50278547 | F204: 14.14768261 | G204: 14.17043331 | H204: 13.60574359 | I204: 13.56682428 | J204: 0.0160648705 | K204: 2.612857609 | L204: 2.612857609 | M204: 2.612857609 | P204: 84.75445834 | Q204: 10.50404086 | R204: 10.50400217 | S204: 10.56986428 | T204: 2.612857609 | U204: 2.612857609 | V204: 2.612857609 | W204: 2.612857609 | Z204: 55.35281577 | AC204: 0.066375 | AD204: 0 | AE204: 0 | AF204: 29.40164256
A205: 178 | B205: 6.068181818 | C205: 1.335 | D205: 14.13985875 | E205: 13.51328922 | F205: 14.1450603 | G205: 14.16786102 | H205: 13.61500433 | I205: 13.57656632 | J205: 0.01606188605 | K205: 2.625952025 | L205: 2.625952025 | M205: 2.625952025 | P205: 84.89502423 | Q205: 10.531179 | R205: 10.53114038 | S205: 10.59686336 | T205: 2.625952025 | U205: 2.625952025 | V205: 2.625952025 | W205: 2.625952025 | Z205: 55.48585826 | AC205: 0.06675 | AD205: 0 | AE205: 0 | AF205: 29.40916597
... 1822 more rows

Sheet Res EIA Tables
A1: Standard EIA Decade Resistor Values
A3: 0.2 | B3: 0.1 | C3: 0.05 | D3: 0.02 | E3: 0.01 | F3: 0.5%, 0.25%, 0.1%
A4: E6 | B4: E12 | C4: E24 | D4: E48 | E4: E96 | F4: E192
A5: 100 | B5: 100 | C5: 100 | D5: 100 | E5: 100 | F5: 100
F6: 101
E7: 102 | F7: 102
F8: 104
D9: 105 | E9: 105 | F9: 105
F10: 106
E11: 107 | F11: 107
F12: 109
C13: 110 | D13: 110 | E13: 110 | F13: 110
F14: 111
E15: 113 | F15: 113
F16: 114
D17: 115 | E17: 115 | F17: 115
F18: 117
E19: 118 | F19: 118
F20: 120
B21: 120 | C21: 120 | D21: 121 | E21: 121 | F21: 121
F22: 123
E23: 124 | F23: 124
F24: 126
D25: 127 | E25: 127 | F25: 127
F26: 129
E27: 130 | F27: 130
F28: 132
C29: 130 | D29: 133 | E29: 133 | F29: 133
F30: 135
E31: 137 | F31: 137
F32: 138
D33: 140 | E33: 140 | F33: 140
F34: 142
E35: 143 | F35: 143
F36: 145
A37: 150 | B37: 150 | C37: 150 | D37: 147 | E37: 147 | F37: 147
F38: 149
E39: 150 | F39: 150
F40: 152
D41: 154 | E41: 154 | F41: 154
F42: 156
E43: 158 | F43: 158
F44: 160
C45: 160 | D45: 162 | E45: 162 | F45: 162
F46: 164
E47: 165 | F47: 165
F48: 167
D49: 169 | E49: 169 | F49: 169
F50: 172
E51: 174 | F51: 174
F52: 176
B53: 180 | C53: 180 | D53: 178 | E53: 178 | F53: 178
F54: 180
E55: 182 | F55: 182
F56: 184
D57: 187 | E57: 187 | F57: 187
F58: 189
E59: 191 | F59: 191
F60: 193
C61: 200 | D61: 196 | E61: 196 | F61: 196
F62: 198
E63: 200 | F63: 200
F64: 203
D65: 205 | E65: 205 | F65: 205
F66: 208
E67: 210 | F67: 210
F68: 213
A69: 220 | B69: 220 | C69: 220 | D69: 215 | E69: 215 | F69: 215
F70: 218
E71: 221 | F71: 221
F72: 223
D73: 226 | E73: 226 | F73: 226
F74: 229
E75: 232 | F75: 232
F76: 234
C77: 240 | D77: 237 | E77: 237 | F77: 237
F78: 240
E79: 243 | F79: 243
F80: 246
D81: 249 | E81: 249 | F81: 249
F82: 252
E83: 255 | F83: 255
F84: 258
B85: 270 | C85: 270 | D85: 261 | E85: 261 | F85: 261
F86: 264
E87: 267 | F87: 267
F88: 271
D89: 274 | E89: 274 | F89: 274
F90: 277
E91: 280 | F91: 280
F92: 284
C93: 300 | D93: 287 | E93: 287 | F93: 287
F94: 291
E95: 294 | F95: 294
F96: 298
D97: 301 | E97: 301 | F97: 301
F98: 305
E99: 309 | F99: 309
F100: 312
A101: 330 | B101: 330 | C101: 330 | D101: 316 | E101: 316 | F101: 316
F102: 320
E103: 324 | F103: 324
F104: 328
D105: 332 | E105: 332 | F105: 332
F106: 336
E107: 340 | F107: 340
F108: 344
C109: 360 | D109: 348 | E109: 348 | F109: 348
F110: 352
E111: 357 | F111: 357
F112: 361
D113: 365 | E113: 365 | F113: 365
F114: 370
E115: 374 | F115: 374
F116: 379
B117: 390 | C117: 390 | D117: 383 | E117: 383 | F117: 383
F118: 388
E119: 392 | F119: 392
F120: 397
D121: 402 | E121: 402 | F121: 402
F122: 407
E123: 412 | F123: 412
F124: 417
C125: 430 | D125: 422 | E125: 422 | F125: 422
F126: 427
E127: 432 | F127: 432
F128: 437
D129: 442 | E129: 442 | F129: 442
F130: 448
E131: 453 | F131: 453
F132: 459
A133: 470 | B133: 470 | C133: 470 | D133: 464 | E133: 464 | F133: 464
F134: 470
E135: 475 | F135: 475
F136: 481
D137: 487 | E137: 487 | F137: 487
F138: 493
E139: 499 | F139: 499
F140: 505
C141: 510 | D141: 511 | E141: 511 | F141: 511
F142: 517
E143: 523 | F143: 523
F144: 530
D145: 536 | E145: 536 | F145: 536
F146: 542
E147: 549 | F147: 549
F148: 556
B149: 560 | C149: 560 | D149: 562 | E149: 562 | F149: 562
F150: 569
E151: 576 | F151: 576
F152: 583
D153: 590 | E153: 590 | F153: 590
F154: 597
E155: 604 | F155: 604
F156: 612
C157: 620 | D157: 619 | E157: 619 | F157: 619
F158: 626
E159: 634 | F159: 634
F160: 642
D161: 649 | E161: 649 | F161: 649
F162: 657
E163: 665 | F163: 665
F164: 673
A165: 680 | B165: 680 | C165: 680 | D165: 681 | E165: 681 | F165: 681
F166: 690
E167: 698 | F167: 698
F168: 706
D169: 715 | E169: 715 | F169: 715
F170: 723
E171: 732 | F171: 732
F172: 741
C173: 750 | D173: 750 | E173: 750 | F173: 750
F174: 759
E175: 768 | F175: 768
F176: 777
D177: 787 | E177: 787 | F177: 787
F178: 796
E179: 806 | F179: 806
F180: 816
B181: 820 | C181: 820 | D181: 825 | E181: 825 | F181: 825
F182: 835
E183: 845 | F183: 845
F184: 856
D185: 866 | E185: 866 | F185: 866
F186: 876
E187: 887 | F187: 887
F188: 898
C189: 910 | D189: 909 | E189: 909 | F189: 909
F190: 920
E191: 931 | F191: 931
F192: 942
D193: 953 | E193: 953 | F193: 953
F194: 965
E195: 976 | F195: 976
F196: 988
A197: 1000 | B197: 1000 | C197: 1000 | D197: 1000 | E197: 1000 | F197: 1000 | G197: End Values Required for Processing

Sheet Cap Tables
A1: Standard Capacitor Values
A3: pF | B3: nF | C3: µF | D3: mF
A4: 1 | B4: 1 | C4: 1 | D4: 1
A5: 1.1 | B5: 1.1
A6: 1.2 | B6: 1.2
A7: 1.3 | B7: 1.3
A8: 1.5 | B8: 1.5 | C8: 1.5 | D8: 1.5
A9: 1.6 | B9: 1.6
A10: 1.8 | B10: 1.8
A11: 2 | B11: 2
A12: 2.2 | B12: 2.2 | C12: 2.2 | D12: 2.2
A13: 2.4 | B13: 2.4
A14: 2.7 | B14: 2.7
A15: 3 | B15: 3
A16: 3.3 | B16: 3.3 | C16: 3.3 | D16: 3.3
A17: 3.6 | B17: 3.6 | C17: =C18 -> 4.7
A18: 3.9 | B18: 3.9 | C18: =C19 -> 4.7
A19: 4.3 | B19: 4.3 | C19: =C20 -> 4.7
A20: 4.7 | B20: 4.7 | C20: 4.7 | D20: 4.7
A21: 5.1 | B21: 5.1 | C21: =C22 -> 6.8
A22: 5.6 | B22: 5.6 | C22: =C23 -> 6.8
A23: 6.2 | B23: 6.2 | C23: =C24 -> 6.8
A24: 6.8 | B24: 6.8 | C24: 6.8 | D24: 6.8
A25: 7.5 | B25: 7.5 | C25: =C26 -> 10
A26: 8.2 | B26: 8.2 | C26: =C27 -> 10
A27: 9.1 | B27: 9.1 | C27: =C28 -> 10
A28: 10 | B28: 10 | C28: 10 | D28: 10
A29: 11 | B29: =B30 -> 15 | C29: 15
A30: 12 | B30: 15 | C30: 15
A31: 13 | B31: 15 | C31: 15
A32: 15 | B32: 15 | C32: 15
A33: 16 | B33: =B34 -> 22 | C33: 22
A34: 18 | B34: 22 | C34: 22
A35: 20 | B35: 22 | C35: 22
A36: 22 | B36: 22 | C36: 22
A37: 24 | B37: =B38 -> 33 | C37: 33
A38: 27 | B38: 33 | C38: 33
A39: 30 | B39: 33 | C39: 33
A40: 33 | B40: 33 | C40: 33
A41: 36 | B41: =B42 -> 47 | C41: 47
A42: 39 | B42: 47 | C42: 47
A43: 43 | B43: 47 | C43: 47
A44: 47 | B44: 47 | C44: 47
A45: 51 | B45: =B46 -> 68 | C45: 68
A46: 56 | B46: 68 | C46: 68
A47: 62 | B47: 68 | C47: 68
A48: 68 | B48: 68 | C48: 68
A49: 75 | B49: =B50 -> 100 | C49: 100
A50: 82 | B50: 100 | C50: 100
A51: 91 | B51: 100 | C51: 100
A52: 100 | B52: 100 | C52: 100
A53: 110 | B53: =B54 -> 150 | C53: 150
A54: 120 | B54: 150 | C54: 150
A55: 130 | B55: 150 | C55: 150
A56: 150 | B56: 150 | C56: 150
A57: 160 | B57: =B58 -> 220 | C57: 220
A58: 180 | B58: 220 | C58: 220
A59: 200 | B59: 220 | C59: 220
A60: 220 | B60: 220 | C60: 220
A61: 240 | B61: =B62 -> 330 | C61: 330
A62: 270 | B62: 330 | C62: 330
A63: 300 | B63: 330 | C63: 330
A64: 330 | B64: 330 | C64: 330
A65: 360 | B65: =B66 -> 470 | C65: 470
A66: 390 | B66: 470 | C66: 470
A67: 430 | B67: 470 | C67: 470
A68: 470 | B68: 470 | C68: 470
A69: 510 | B69: =B70 -> 680 | C69: 680
A70: 560 | B70: 680 | C70: 680
A71: 620 | B71: 680 | C71: 680
A72: 680 | B72: 680 | C72: 680
A73: 750 | B73: =B74 -> 1000 | C73: =C74 -> 1000
A74: 820 | B74: =B75 -> 1000 | C74: =C75 -> 1000
A75: 910 | B75: 1000 | C75: 1000
